NUMERO_MANDATO;RIGA_MANDATO;QUIET;IMPORTO_RIGA;IMPORTO_MANDATO;BENEFICIARIO;CIG;TITOLO_PAGAMENTO;DATA_MANDATO;CAPITOLO;ARTICOLO;NUMERO_IMPEGNO;TITOLO;DESCR_TITOLO;LIVELLO_II;DESCR_LIVELLO_II;LIVELLO_III;DESCR_LIVELLO_III;LIVELLO_IV;DESCR_LIVELLO_IV;LIVELLO_V;DESCR_LIVELLO_V;DATA_PAG_EFF
888;1;0;90,48;90,48;Vodafone Italia S.p.A.;ZD11381BD3;ACCONTO Fatt.n. AI17097409  del 20/09/2018 Spese per telefonia mobile per il periodo dal 17.07.2018 al 16.09.2018;04/10/2018;4751;0;119;1;Spese correnti;3;Acquisto di beni e servizi;2;Acquisto di servizi;5;Utenze e canoni;2;Telefonia mobile;04/10/2018
889;1;0;161,86;161,86;Vodafone Italia S.p.A.;Z941E11750;ACCONTO Fatt.n. AI17097409  del 20/09/2018 Spese telefoniche utenza Scuola dell'Infanzia per il periodo dal 17.07.2018 al 16.09.2018;04/10/2018;28001;0;140;1;Spese correnti;3;Acquisto di beni e servizi;2;Acquisto di servizi;5;Utenze e canoni;1;Telefonia fissa;04/10/2018
890;1;0;161,86;161,86;Vodafone Italia S.p.A.;Z941E11750;ACCONTO Fatt.n. AI17097409  del 20/09/2018 Spese telefoniche utenza Scuola Primaria per il periodo dal 17.07.2018 al 16.09.2018;04/10/2018;29701;0;141;1;Spese correnti;3;Acquisto di beni e servizi;2;Acquisto di servizi;5;Utenze e canoni;1;Telefonia fissa;04/10/2018
891;1;0;161,84;161,84;Vodafone Italia S.p.A.;Z941E11750;ACCONTO Fatt.n. AI17097409  del 20/09/2018 Spese telefoniche utenza Scuola Secondaria primo grado per il periodo 17.07.2018 al 16.09.2018;04/10/2018;31801;0;142;1;Spese correnti;3;Acquisto di beni e servizi;2;Acquisto di servizi;5;Utenze e canoni;1;Telefonia fissa;04/10/2018
892;1;0;92,45;92,45;Vodafone Italia S.p.A.;Z941E11750;ACCONTO Fatt.n. AI17097409  del 20/09/2018 Spese telefoniche utenza biblioteca comunale per il periodo dal 17.07.2018 al 16.09.2018;04/10/2018;3761;0;144;1;Spese correnti;3;Acquisto di beni e servizi;2;Acquisto di servizi;5;Utenze e canoni;1;Telefonia fissa;04/10/2018
893;1;0;4,91;4,91;Vodafone Italia S.p.A.;Z941E11750;ACCONTO Fatt.n. AI17097409  del 20/09/2018 Spese telefoniche utenza Biblioteca per il periodo dal 17.07.2018 al 16.09.2018;04/10/2018;3761;0;311;1;Spese correnti;3;Acquisto di beni e servizi;2;Acquisto di servizi;5;Utenze e canoni;1;Telefonia fissa;04/10/2018
894;1;0;540,69;540,69;Vodafone Italia S.p.A.;Z941E11750;ACCONTO Fatt.n. AI17097409  del 20/09/2018 Spese telefoniche utenze Sede Municipale per il periodo dal 17.07.2018 al 16.09.2018;04/10/2018;4751;0;143;1;Spese correnti;3;Acquisto di beni e servizi;2;Acquisto di servizi;5;Utenze e canoni;1;Telefonia fissa;04/10/2018
895;1;0;43,65;43,65;Vodafone Italia S.p.A.;Z941E11750;ACCONTO Fatt.n. AI17097409  del 20/09/2018 Spese telefoniche utenza Villa Venier per il dal 17.07.2018 al 16.09.2018;04/10/2018;1312;0;139;1;Spese correnti;3;Acquisto di beni e servizi;2;Acquisto di servizi;5;Utenze e canoni;1;Telefonia fissa;04/10/2018
896;1;0;65,91;65,91;Vodafone Italia S.p.A.;Z941E11750;SALDO Fatt.n. AI17097409  del 20/09/2018 Spese telefoniche utenza Villa Venier per il periodo dal 17.07.2018 al 16.09.2018;04/10/2018;1312;0;310;1;Spese correnti;3;Acquisto di beni e servizi;2;Acquisto di servizi;5;Utenze e canoni;1;Telefonia fissa;04/10/2018
897;1;0;887,38;887,38;TREVISAN VANESSA; ;Indennita di carica Sindaco settembre  2018;08/10/2018;10;0;24;1;Spese correnti;3;Acquisto di beni e servizi;2;Acquisto di servizi;1;Organi e incarichi istituzionali dell'amministrazione;1;Organi istituzionali dell'amministrazione - Indennità;08/10/2018
898;1;0;177,48;177,48;CALAON SIMONE; ;Indennita di carica Vice-Sindaco settembre 2018;08/10/2018;10;0;25;1;Spese correnti;3;Acquisto di beni e servizi;2;Acquisto di servizi;1;Organi e incarichi istituzionali dell'amministrazione;1;Organi istituzionali dell'amministrazione - Indennità;08/10/2018
899;1;0;133,11;133,11;LAZZARETTO ROBERTA; ;Indennita di carica Assessore settembre 2018;08/10/2018;10;0;27;1;Spese correnti;3;Acquisto di beni e servizi;2;Acquisto di servizi;1;Organi e incarichi istituzionali dell'amministrazione;1;Organi istituzionali dell'amministrazione - Indennità;08/10/2018
900;1;0;266,21;266,21;SANTIMARIA ANDREA; ;Indennita di carica Assessore settembre  2018;08/10/2018;10;0;26;1;Spese correnti;3;Acquisto di beni e servizi;2;Acquisto di servizi;1;Organi e incarichi istituzionali dell'amministrazione;1;Organi istituzionali dell'amministrazione - Indennità;08/10/2018
901;1;0;20,5;266,21;Agenzia delle Entrate - Riscossione; ;Riversamento somma pignorata con atto di pignoramento fascicolo n. 77/2018/000045533 mese di  settembre 2018;08/10/2018;10;0;28;1;Spese correnti;3;Acquisto di beni e servizi;2;Acquisto di servizi;1;Organi e incarichi istituzionali dell'amministrazione;1;Organi istituzionali dell'amministrazione - Indennità;08/10/2018
901;2;0;245,71;266,21;ZAVATTIERO AGOSTINO; ;Indennita di carica Assessore settembre 2018;08/10/2018;10;0;28;1;Spese correnti;3;Acquisto di beni e servizi;2;Acquisto di servizi;1;Organi e incarichi istituzionali dell'amministrazione;1;Organi istituzionali dell'amministrazione - Indennità;08/10/2018
902;1;0;174,08;174,08;LAZZARETTO ROBERTA; ;Rimborso per spese di viaggio ass. Lazzaretto Roberta settembre 2018 - A.L. AC N. 203 DEL 05.10.2018;08/10/2018;230;0;33;1;Spese correnti;3;Acquisto di beni e servizi;2;Acquisto di servizi;1;Organi e incarichi istituzionali dell'amministrazione;2;Organi istituzionali dell'amministrazione - Rimborsi;08/10/2018
911;1;0;750;750;"CASA DI RIPOSO ""A. SIMIONATI"""; ;SALDO Fatt.n. 124/E  del 30/09/2018 Quota retta R.R. mese di settembre 2018;08/10/2018;6875;0;15;1;Spese correnti;3;Acquisto di beni e servizi;2;Acquisto di servizi;99;Altri servizi;999;Altri servizi diversi n.a.c.;08/10/2018
912;1;0;2.000,00;2.000,00;COMUNE DI LOZZO ATESTINO;Z8F1EF4A86;Progetto di pubblica utilita' e cittadinanza attiva D.G.R. Veneto n. 311/2017 - a.l. ac n. 166 del 09.08.2018;08/10/2018;6935;0;189;1;Spese correnti;4;Trasferimenti correnti;2;Trasferimenti correnti a Famiglie;5;Altri trasferimenti a famiglie;999;Altri trasferimenti a famiglie n.a.c.;08/10/2018
913;1;0;2.475,00;2.475,00;COOPERATIVA SOCIALE SERVIZI ASSOCIATI;7079166895;SALDO Fatt.n. D-364  del 31/07/2018 Servizio di trasporto extra scolastico alunni in occasione uscite didattiche nel periodo aprile / giugno 2018;08/10/2018;3413;0;290;1;Spese correnti;3;Acquisto di beni e servizi;2;Acquisto di servizi;15;Contratti di servizio pubblico;2;Contratti di servizio di trasporto scolastico;08/10/2018
915;1;0;503,7;503,7;MINISTERO DELL'INTERNO; ;Comune di Vo' - Corrispettivo per il rilascio di n. 30 carte d'identita' elettroniche periodo 01.09.2018 - 30.09.2018;08/10/2018;1100;0;220;1;Spese correnti;4;Trasferimenti correnti;1;Trasferimenti correnti a Amministrazioni Pubbliche;1;Trasferimenti correnti a Amministrazioni Centrali;1;Trasferimenti correnti a Ministeri;08/10/2018
916;1;0;1.500,00;1.500,00;ISTITUTO COMPRENSIVO LOZZO ATESTINO; ;Contributo per il servizio di sorveglianza alunni svolte dal personale collaboratore scolastico A.S. 2017/2018 - A.L. AC N. 192 DEL 24.09.2018;08/10/2018;3425;0;292;1;Spese correnti;4;Trasferimenti correnti;1;Trasferimenti correnti a Amministrazioni Pubbliche;1;Trasferimenti correnti a Amministrazioni Centrali;2;Trasferimenti correnti a Ministero dell'Istruzione - Istituzioni scolastiche;08/10/2018
917;1;0;4.400,00;4.400,00;ISTITUTO COMPRENSIVO LOZZO ATESTINO; ;Contributo per l'anno scolastico 2018/2019 ai sensi della Legge n. 23 del 11.01.1996 - A.L. AC N. 191 DEL 24.09.2018;08/10/2018;3425;0;291;1;Spese correnti;4;Trasferimenti correnti;1;Trasferimenti correnti a Amministrazioni Pubbliche;1;Trasferimenti correnti a Amministrazioni Centrali;2;Trasferimenti correnti a Ministero dell'Istruzione - Istituzioni scolastiche;08/10/2018
918;1;0;1.021,39;1.021,39;PROVINCIA DI PADOVA; ;Addizionale provinciale (5%) su incassi tributo TARI anno 2014 e 2015 - a.l. ac n. 195 del 28.09.2018;08/10/2018;1490;0;438;1;Spese correnti;4;Trasferimenti correnti;1;Trasferimenti correnti a Amministrazioni Pubbliche;2;Trasferimenti correnti a Amministrazioni Locali;2;Trasferimenti correnti a Province;08/10/2018
919;1;0;525,04;525,04;POSTE ITALIANE SPA;Z961438A4F;SALDO Fatt.n. 8718316051  del 21/09/2018 Fattura Elettronica relativa all'Identificativo Rendiconto 2098685661 - luglio 2018;08/10/2018;4800;0;230;1;Spese correnti;3;Acquisto di beni e servizi;2;Acquisto di servizi;16;Servizi amministrativi;2;Spese postali;08/10/2018
920;1;0;777,9;777,9;MAGAZZINI AMBROSI S.A.S. DI AMBROSI FABIO E TIZIANA;Z422386491;SALDO Fatt.n. 18  del 28/09/2018 Fornitura materiale di ferramenta per operai;08/10/2018;1300;0;241;1;Spese correnti;3;Acquisto di beni e servizi;1;Acquisto di beni;2;Altri beni di consumo;999;Altri beni e materiali di consumo n.a.c.;08/10/2018
921;1;0;410,01;410,01;BOGONI ALFONSO & C. S.A.S.;Z9E1D16AO2;SALDO Fatt.n. V0000008FE  del 31/08/2018 Fornitura carburante agosto 2018;08/10/2018;570;0;39;1;Spese correnti;3;Acquisto di beni e servizi;1;Acquisto di beni;2;Altri beni di consumo;2;Carburanti, combustibili e lubrificanti;08/10/2018
922;1;0;3.363,10;3.363,10;MARTINI LUCIANO SRL;Z70188CBBO;SALDO Fatt.n. 14/EL  del 20/09/2018 SALDO LAVORI  LUGLIO E AGOSTO 2018;09/10/2018;1302;0;289;1;Spese correnti;3;Acquisto di beni e servizi;2;Acquisto di servizi;9;Manutenzione ordinaria e riparazioni;8;Manutenzione ordinaria e riparazioni di beni immobili;09/10/2018
923;1;0;8.436,69;8.436,69;S.E.S.A. SPA;Z11182D6F2;SALDO Fatt.n. 2001242  del 31/08/2018 SMALTIMENTO RIFIUTI AGOSTO 2018;09/10/2018;5780;0;41;1;Spese correnti;3;Acquisto di beni e servizi;2;Acquisto di servizi;15;Contratti di servizio pubblico;4;Contratti di servizio per la raccolta rifiuti;09/10/2018
924;1;0;13,49;13,49;E.ON Energia S.p.a.;Z7113FE6B2;SALDO Fatt.n. 40007187  del 01/10/2018 Fornitura gas naturale immobile Piazzetta Martiri per il periodo dal 27.07.2018 al 29.08.2018;10/10/2018;1405;0;59;1;Spese correnti;3;Acquisto di beni e servizi;2;Acquisto di servizi;5;Utenze e canoni;6;Gas;10/10/2018
925;1;0;48,78;48,78;E.ON Energia S.p.a.;Z7113FE6B2;SALDO Fatt.n. 40007211  del 01/10/2018 Fornitura gas naturale utenza Villa Venier mese di agosto 2018;10/10/2018;1312;0;64;1;Spese correnti;3;Acquisto di beni e servizi;2;Acquisto di servizi;5;Utenze e canoni;6;Gas;10/10/2018
926;1;0;14,49;62,07;E.ON Energia S.p.a.;Z7113FE6B2;SALDO Fatt.n. 40006704  del 01/10/2018 Fornitura gas naturale utenza Sede Municipale (matricola contatore 0030155066) mese di agosto 2018;10/10/2018;4751;0;60;1;Spese correnti;3;Acquisto di beni e servizi;2;Acquisto di servizi;5;Utenze e canoni;6;Gas;10/10/2018
926;2;0;47,58;62,07;E.ON Energia S.p.a.;Z7113FE6B2;SALDO Fatt.n. 40007185  del 01/10/2018 Fornitura gas naturale utenza Sede Municipale (matricola contatore 45006563) mese di agosto 2018;10/10/2018;4751;0;60;1;Spese correnti;3;Acquisto di beni e servizi;2;Acquisto di servizi;5;Utenze e canoni;6;Gas;10/10/2018
927;1;0;46,58;46,58;E.ON Energia S.p.a.;Z7113FE6B2;SALDO Fatt.n. 40007186  del 01/10/2018 Fornitura gas naturale utenza Polo Scolastico mese di agosto 2018;10/10/2018;29701;0;62;1;Spese correnti;3;Acquisto di beni e servizi;2;Acquisto di servizi;5;Utenze e canoni;6;Gas;10/10/2018
928;1;0;40;40;ISTITUTO COMPRENSIVO LOZZO ATESTINO; ;Contributo per l'anno scolastico 2018/2019 ai sensi della Legge n. 23 del 11.01.1996 - saldo - A.L. AC N. 917 DEL 08.10.2018;17/10/2018;3425;0;291;1;Spese correnti;4;Trasferimenti correnti;1;Trasferimenti correnti a Amministrazioni Pubbliche;1;Trasferimenti correnti a Amministrazioni Centrali;2;Trasferimenti correnti a Ministero dell'Istruzione - Istituzioni scolastiche;17/10/2018
929;1;0;29.524,00;29.524,00;WORLD APPEAL;ZAE22F9FF8;SALDO Fatt.n. 8/PA18  del 18/09/2018 ORGANIZZAZIONE E GESTIONE FESTA DELL'UVA 2018;17/10/2018;7050;0;172;1;Spese correnti;3;Acquisto di beni e servizi;2;Acquisto di servizi;2;Organizzazione eventi, pubblicita` e servizi per trasferta;5;Organizzazione e partecipazione a manifestazioni e convegni;17/10/2018
930;1;0;406,25;406,25;COMUNE DI MONSELICE; ;"Realizzazione piano di intervento in materia di Politiche Giovanili del Comitato 5 Ulss 6 Euganea denominato ""Bassa P."" - A.L. AC N. 201 DEL 05.10.2018";17/10/2018;6935;0;297;1;Spese correnti;4;Trasferimenti correnti;2;Trasferimenti correnti a Famiglie;5;Altri trasferimenti a famiglie;999;Altri trasferimenti a famiglie n.a.c.;17/10/2018
931;1;0;1.220,00;1.220,00;BANCA MONTE DEI PASCHI DI SIENA S.p.A.;Z772239A29;SALDO Fatt.n. 20001494  del 05/10/2018 Spese per gestione servizio di Tesoreria Comunale per il periodo luglio / settembre 2018;17/10/2018;600;0;143;1;Spese correnti;3;Acquisto di beni e servizi;2;Acquisto di servizi;17;Servizi finanziari;2;Oneri per servizio di tesoreria;17/10/2018
932;1;0;169,49;169,49;TECNOPRINT di Mora Alessandro;Z9324BC214;SALDO Fatt.n. 50/PA  del 29/09/2018 fornitura n. 3 kit bandiere per edifici pubblici;17/10/2018;4753;0;258;1;Spese correnti;3;Acquisto di beni e servizi;1;Acquisto di beni;2;Altri beni di consumo;1;Carta, cancelleria e stampati;17/10/2018
934;1;0;299,64;299,64;MAPLAST SRL;Z291DF171A;SALDO Fatt.n. 145  del 15/10/2018 CONFERMA ORDINE DEL 28.09.18 PRO. 9304 DEL 27.09.18;17/10/2018;4752;0;207;1;Spese correnti;3;Acquisto di beni e servizi;2;Acquisto di servizi;9;Manutenzione ordinaria e riparazioni;5;Manutenzione ordinaria e riparazioni di attrezzature;17/10/2018
935;1;0;1.045,00;1.045,00;ZEFIRO SRL;Z3D1A45638;ACCONTO Fatt.n. 39/PA  del 30/09/2018 Servizio di pulizia edifici comunali MESE di SETTEMBRE 2018;17/10/2018;475;0;393;1;Spese correnti;3;Acquisto di beni e servizi;2;Acquisto di servizi;99;Altri servizi;999;Altri servizi diversi n.a.c.;17/10/2018
936;1;0;174,87;174,87;ZEFIRO SRL;Z3D1A45638;ACCONTO Fatt.n. 39/PA  del 30/09/2018 Servizio di pulizia edifici comunali MESE di SETTEMBRE 2018;17/10/2018;1400;0;396;1;Spese correnti;3;Acquisto di beni e servizi;2;Acquisto di servizi;9;Manutenzione ordinaria e riparazioni;8;Manutenzione ordinaria e riparazioni di beni immobili;17/10/2018
937;1;0;294,74;294,74;ZEFIRO SRL;Z3D1A45638;SALDO Fatt.n. 39/PA  del 30/09/2018 Servizio di pulizia edifici comunali MESE di SETTEMBRE 2018;17/10/2018;37601;0;395;1;Spese correnti;3;Acquisto di beni e servizi;2;Acquisto di servizi;99;Altri servizi;999;Altri servizi diversi n.a.c.;17/10/2018
938;1;0;3.159,80;3.159,80;MANDRUZZATO MARMI S.n.c. di Mandruzzato Bruno  & Andrea;ZB725208F7;SALDO Fatt.n. 000003-2018-PA  del 04/10/2018 Fornitura mq 15,36 copriloculo;17/10/2018;1300;0;300;1;Spese correnti;3;Acquisto di beni e servizi;1;Acquisto di beni;2;Altri beni di consumo;999;Altri beni e materiali di consumo n.a.c.;17/10/2018
939;1;0;6.283,00;6.283,00;VENETA SICUREZZA E SEGNALETICA STRADALE  SRL;Z2E24DA99A;SALDO Fatt.n. 124  del 04/10/2018 Fornitura e posa in opera guard rail in legno e acciaio via M. Venda;17/10/2018;11820;0;285;2;Spese in conto capitale;2;Investimenti fissi lordi e acquisto di terreni;1;Beni materiali;9;Beni immobili;12;Infrastrutture stradali;17/10/2018
940;1;0;1.692,75;3.316,88;Mesac S.R.L.;ZE418C2969;SALDO Fatt.n. 540  del 10/10/2018 Servizio di sepoltura terzo trimestre 2018;17/10/2018;5190;0;85;1;Spese correnti;3;Acquisto di beni e servizi;2;Acquisto di servizi;99;Altri servizi;999;Altri servizi diversi n.a.c.;17/10/2018
940;2;0;1.624,13;3.316,88;Mesac S.R.L.;ZE418C2969;SALDO Fatt.n. 220  del 30/06/2018 Servizio di sepoltura secondo trimestre 2018;17/10/2018;5190;0;85;1;Spese correnti;3;Acquisto di beni e servizi;2;Acquisto di servizi;99;Altri servizi;999;Altri servizi diversi n.a.c.;17/10/2018
941;1;0;160,25;160,25;Illumia S.p.A.;Z0E14167CF;SALDO Fatt.n. 6453-PE  del 20/09/2018 Fornitura energia elettrica utenza Villa Venier mese di agosto 2018  -  provv. 153;23/10/2018;1312;0;266;1;Spese correnti;3;Acquisto di beni e servizi;2;Acquisto di servizi;5;Utenze e canoni;4;Energia elettrica;23/10/2018
942;1;0;145,67;2.859,43;Illumia S.p.A.;Z0E14167CF;SALDO Fatt.n. 6454-PE  del 20/09/2018 Fornitura energia elettrica utenza Piazzetta Spolverato (POD IT001E35512473) mese di agosto 2018  -  provv. 154;23/10/2018;7420;0;268;1;Spese correnti;3;Acquisto di beni e servizi;2;Acquisto di servizi;5;Utenze e canoni;4;Energia elettrica;23/10/2018
942;2;0;2.713,76;2.859,43;Illumia S.p.A.;Z0E14167CF;SALDO Fatt.n. 6450-PE  del 20/09/2018 Fornitura energia elettrica utenze illuminazione pubblica mese di agosto 2018  -  provv. 151;23/10/2018;7420;0;268;1;Spese correnti;3;Acquisto di beni e servizi;2;Acquisto di servizi;5;Utenze e canoni;4;Energia elettrica;23/10/2018
943;1;0;251,27;251,27;Illumia S.p.A.;Z0E14167CF;SALDO Fatt.n. 6452-PE  del 20/09/2018 Fornitura energia elettrica edificio Piazzetta Martiri mese di agosto 2018  -  provv. 152;23/10/2018;1405;0;267;1;Spese correnti;3;Acquisto di beni e servizi;2;Acquisto di servizi;5;Utenze e canoni;4;Energia elettrica;23/10/2018
944;1;0;61,96;61,96;Illumia S.p.A.;Z0E14167CF;ACCONTO Fatt.n. 6483-PE  del 20/09/2018 Fornitura energia elettrica utenza Polo Scolastico mese di agosto 2018  -  provv. 155;23/10/2018;28001;0;260;1;Spese correnti;3;Acquisto di beni e servizi;2;Acquisto di servizi;5;Utenze e canoni;4;Energia elettrica;23/10/2018
945;1;0;61,96;61,96;Illumia S.p.A.;Z0E14167CF;ACCONTO Fatt.n. 6483-PE  del 20/09/2018 Fornitura energia elettrica utenza Polo Scolastico mese di agosto 2018  -  provv. 155;23/10/2018;29701;0;261;1;Spese correnti;3;Acquisto di beni e servizi;2;Acquisto di servizi;5;Utenze e canoni;4;Energia elettrica;23/10/2018
946;1;0;61,96;61,96;Illumia S.p.A.;Z0E14167CF;SALDO Fatt.n. 6483-PE  del 20/09/2018 Fornitura energia elettrica utenza Polo Scolastico mese di agosto 2018  -  provv. 155;23/10/2018;31801;0;262;1;Spese correnti;3;Acquisto di beni e servizi;2;Acquisto di servizi;5;Utenze e canoni;4;Energia elettrica;23/10/2018
947;1;0;385,06;385,06;Illumia S.p.A.;Z0E14167CF;SALDO Fatt.n. 6484-PE  del 20/09/2018 Fornitura energia elettrica utenza Sede Municipale mese di agosto 2018  -  provv. 156;23/10/2018;4751;0;259;1;Spese correnti;3;Acquisto di beni e servizi;2;Acquisto di servizi;5;Utenze e canoni;4;Energia elettrica;23/10/2018
969;1;0;607,2;607,2;I.C.A. IMPOSTE COMUNALI AFFINI;Z291C60108;SALDO Fatt.n. FE0005136  del 22/10/2018 Compenso per servizio di liquidazione, accertamento e riscossione dell'imposta comunale sulla pubblicita' terzo trimestre 2018;31/10/2018;1480;0;173;1;Spese correnti;3;Acquisto di beni e servizi;2;Acquisto di servizi;3;Aggi di riscossione;999;Altri aggi di riscossione n.a.c.;31/10/2018
971;1;0;6.344,00;6.344,00;BALDESCHI DANIELA;Z271F06648;"SALDO Fatt.n. 02/2018/PA  del 03/10/2018 Acconto 50% competenze per progetto ""Rigenerare territori, coltivare innovazioni""";05/11/2018;7100;0;203;1;Spese correnti;10;Altre spese correnti;99;Altre spese correnti n.a.c.;99;Altre spese correnti n.a.c.;999;Altre spese correnti n.a.c.;05/11/2018
972;1;0;610;610;TONIOLO S.R.L.;Z202487937;SALDO Fatt.n. FPA/PR 12/18  del 02/08/2018 Raddrizzatura paracarro con getto alla base e sistemazione porfido circostante;05/11/2018;1302;0;242;1;Spese correnti;3;Acquisto di beni e servizi;2;Acquisto di servizi;9;Manutenzione ordinaria e riparazioni;8;Manutenzione ordinaria e riparazioni di beni immobili;05/11/2018
973;1;0;164,7;164,7;IMQ SPA;Z0722734FD;SALDO Fatt.n. 118029944  del 17/10/2018 Collaudo/Verifica impianti elevatori  Villa Venier;05/11/2018;1310;0;96;1;Spese correnti;3;Acquisto di beni e servizi;2;Acquisto di servizi;9;Manutenzione ordinaria e riparazioni;8;Manutenzione ordinaria e riparazioni di beni immobili;05/11/2018
974;1;0;164,7;164,7;IMQ SPA;Z0722734FD;SALDO Fatt.n. 118029945  del 17/10/2018 Collaudo/Verifica impianti elevatori sede municipale;05/11/2018;476;0;98;1;Spese correnti;3;Acquisto di beni e servizi;2;Acquisto di servizi;9;Manutenzione ordinaria e riparazioni;8;Manutenzione ordinaria e riparazioni di beni immobili;05/11/2018
975;1;0;5.490,00;5.490,00;MARTINI LUCIANO SRL;Z70188CBBO;SALDO Fatt.n. 18/EL  del 17/10/2018 acconto su lavori sistemazioni stradali;05/11/2018;1302;0;289;1;Spese correnti;3;Acquisto di beni e servizi;2;Acquisto di servizi;9;Manutenzione ordinaria e riparazioni;8;Manutenzione ordinaria e riparazioni di beni immobili;05/11/2018
976;1;0;503;503;BOGONI ALFONSO & C. S.A.S.;Z9E1D16AO2;ACCONTO Fatt.n. V0000009FE  del 30/09/2018 fornitura carburante mese di settembre 2018;05/11/2018;570;0;39;1;Spese correnti;3;Acquisto di beni e servizi;1;Acquisto di beni;2;Altri beni di consumo;2;Carburanti, combustibili e lubrificanti;05/11/2018
977;1;0;74,7;74,7;BOGONI ALFONSO & C. S.A.S.;Z9E1D16AO2;SALDO Fatt.n. V0000009FE  del 30/09/2018 fornitura carburante mese di settembre 2018;05/11/2018;2665;0;40;1;Spese correnti;3;Acquisto di beni e servizi;1;Acquisto di beni;2;Altri beni di consumo;999;Altri beni e materiali di consumo n.a.c.;05/11/2018
978;1;0;46,81;46,81;Busitalia Veneto spa; ;SALDO Fatt.n. 8121000509  del 22/10/2018 Quota abbontamenti 3' trimestre 2018;05/11/2018;6935;0;148;1;Spese correnti;4;Trasferimenti correnti;2;Trasferimenti correnti a Famiglie;5;Altri trasferimenti a famiglie;999;Altri trasferimenti a famiglie n.a.c.;05/11/2018
979;1;0;235,02;235,02;MyO srl;ZBF2527503;SALDO Fatt.n. 2040/180025346  del 04/10/2018 fornitura cancelleria varia er uffici;05/11/2018;4753;0;305;1;Spese correnti;3;Acquisto di beni e servizi;1;Acquisto di beni;2;Altri beni di consumo;1;Carta, cancelleria e stampati;05/11/2018
980;1;0;219,6;219,6;MyO srl;ZBF2527503;SALDO Fatt.n. 2040/180026382  del 17/10/2018 fornitura buste intestate con strip senza finestrella;05/11/2018;4753;0;305;1;Spese correnti;3;Acquisto di beni e servizi;1;Acquisto di beni;2;Altri beni di consumo;1;Carta, cancelleria e stampati;05/11/2018
981;1;0;671;671;AMTUR SNC di Turetta Maurizio e Davide;ZB5247C9AC;SALDO Fatt.n. 03/PA  del 15/10/2018 fornitura bagni chimici per fiera di S. Lorenzo 2018;05/11/2018;8888;0;239;1;Spese correnti;3;Acquisto di beni e servizi;2;Acquisto di servizi;99;Altri servizi;999;Altri servizi diversi n.a.c.;05/11/2018
982;1;0;517,36;517,36;POSTE ITALIANE SPA;Z961438A4F;SALDO Fatt.n. 8718350842  del 18/10/2018 Fattura Elettronica relativa all'Identificativo Rendiconto 2099087396 - agosto 2018;05/11/2018;4800;0;230;1;Spese correnti;3;Acquisto di beni e servizi;2;Acquisto di servizi;16;Servizi amministrativi;2;Spese postali;05/11/2018
983;1;0;4.244,04;4.244,04;COOPERATIVA SOCIALE SERVIZI ASSOCIATI;7079166895;SALDO Fatt.n. D-427  del 30/09/2018 Servizio di trasporto scolastico mese di settembre 2018;05/11/2018;3413;0;279;1;Spese correnti;3;Acquisto di beni e servizi;2;Acquisto di servizi;15;Contratti di servizio pubblico;2;Contratti di servizio di trasporto scolastico;05/11/2018
984;1;0;150;150;OMESSO NOMINATIVO NEL RISPETTO DELLA NORMATIVA SULLA PROTEZIONE DATI PERSONALI; ;Erogazione contributi economici OTTOBRE 2018;05/11/2018;6935;0;131;1;Spese correnti;4;Trasferimenti correnti;2;Trasferimenti correnti a Famiglie;5;Altri trasferimenti a famiglie;999;Altri trasferimenti a famiglie n.a.c.;05/11/2018
988;1;0;1.159,98;1.159,98;Sodexo Italia Spa;64630250F4;SALDO Fatt.n. 7400042573  del 30/09/2018 Fornitura pasti scuola materna mese di settembre 2018;05/11/2018;3404;0;65;1;Spese correnti;3;Acquisto di beni e servizi;2;Acquisto di servizi;15;Contratti di servizio pubblico;6;Contratti di servizio per le mense scolastiche;05/11/2018
989;1;0;816,29;816,29;Sodexo Italia Spa;64630250F4;SALDO Fatt.n. 7400042574  del 30/09/2018 Fornitura pasti scuole elementari mese di settembre 2018;05/11/2018;3406;0;66;1;Spese correnti;3;Acquisto di beni e servizi;2;Acquisto di servizi;15;Contratti di servizio pubblico;6;Contratti di servizio per le mense scolastiche;05/11/2018
990;1;0;279,94;279,94;Sodexo Italia Spa;64630250F4;SALDO Fatt.n. 7400042575  del 30/09/2018 Servizio di sorveglianza refettorio settembre 2018;05/11/2018;3406;0;154;1;Spese correnti;3;Acquisto di beni e servizi;2;Acquisto di servizi;15;Contratti di servizio pubblico;6;Contratti di servizio per le mense scolastiche;05/11/2018
991;1;0;512,4;9.906,82;S.E.S.A. SPA;Z11182D6F2;ACCONTO Fatt.n. 2001393  del 30/09/2018 Servizio smaltimento rifiuti  SETTEMBRE 2018;06/11/2018;5780;0;41;1;Spese correnti;3;Acquisto di beni e servizi;2;Acquisto di servizi;15;Contratti di servizio pubblico;4;Contratti di servizio per la raccolta rifiuti;06/11/2018
991;2;0;9.394,42;9.906,82;S.E.S.A. SPA;Z11182D6F2;SALDO Fatt.n. 2001393  del 30/09/2018 Servizio smaltimento rifiuti  SETTEMBRE 2018;06/11/2018;5780;0;41;1;Spese correnti;3;Acquisto di beni e servizi;2;Acquisto di servizi;15;Contratti di servizio pubblico;4;Contratti di servizio per la raccolta rifiuti;06/11/2018
992;1;0;13.323,94;13.323,94;S.E.S.A. SPA;6848933E4B;SALDO Fatt.n. 2001461  del 30/09/2018 Raccolta rifiuti porta a porta SETTEMBRE 2018;06/11/2018;5780;0;18;1;Spese correnti;3;Acquisto di beni e servizi;2;Acquisto di servizi;15;Contratti di servizio pubblico;4;Contratti di servizio per la raccolta rifiuti;06/11/2018
993;1;0;887,38;887,38;TREVISAN VANESSA; ;Indennita di carica Sindaco ottobre 2018;06/11/2018;10;0;24;1;Spese correnti;3;Acquisto di beni e servizi;2;Acquisto di servizi;1;Organi e incarichi istituzionali dell'amministrazione;1;Organi istituzionali dell'amministrazione - Indennità;06/11/2018
994;1;0;133,11;133,11;LAZZARETTO ROBERTA; ;Indennita di carica Assessore ottobre 2018;06/11/2018;10;0;27;1;Spese correnti;3;Acquisto di beni e servizi;2;Acquisto di servizi;1;Organi e incarichi istituzionali dell'amministrazione;1;Organi istituzionali dell'amministrazione - Indennità;06/11/2018
995;1;0;114,24;114,24;LAZZARETTO ROBERTA; ;Rimborso per spese di viaggio amministratori comunali ottobre 2018 - A.L. AC N. 223 DEL 06.11.2018;06/11/2018;230;0;33;1;Spese correnti;3;Acquisto di beni e servizi;2;Acquisto di servizi;1;Organi e incarichi istituzionali dell'amministrazione;2;Organi istituzionali dell'amministrazione - Rimborsi;06/11/2018
996;1;0;266,21;266,21;SANTIMARIA ANDREA; ;Indennita di carica Assessore OTTOBRE 2018;06/11/2018;10;0;26;1;Spese correnti;3;Acquisto di beni e servizi;2;Acquisto di servizi;1;Organi e incarichi istituzionali dell'amministrazione;1;Organi istituzionali dell'amministrazione - Indennità;06/11/2018
997;1;0;177,48;177,48;CALAON SIMONE; ;Indennita di carica Vice-Sindaco OTTOBRE 2018;06/11/2018;10;0;25;1;Spese correnti;3;Acquisto di beni e servizi;2;Acquisto di servizi;1;Organi e incarichi istituzionali dell'amministrazione;1;Organi istituzionali dell'amministrazione - Indennità;06/11/2018
998;1;0;20,5;266,21;Agenzia delle Entrate - Riscossione; ;Riversamento somma pignorata con atto fascicolo n. 77/2018/000045533 mese di ottobre 2018 - a.l. AC N. 173 DEL 30.08.2018;06/11/2018;10;0;28;1;Spese correnti;3;Acquisto di beni e servizi;2;Acquisto di servizi;1;Organi e incarichi istituzionali dell'amministrazione;1;Organi istituzionali dell'amministrazione - Indennità;06/11/2018
998;2;0;245,71;266,21;ZAVATTIERO AGOSTINO; ;Indennita di carica Assessore OTTOBRE 2018;06/11/2018;10;0;28;1;Spese correnti;3;Acquisto di beni e servizi;2;Acquisto di servizi;1;Organi e incarichi istituzionali dell'amministrazione;1;Organi istituzionali dell'amministrazione - Indennità;06/11/2018
1001;1;0;188,69;188,69;TESORERIA PROVINCIALE DELLO STATO - RISCOSSIONE TRIBUTI; ;Liquidazione I.V.A. a debito terzo trimestre 2018 -AL AC N. 222 DEL 06.11.2018;06/11/2018;9240;0;347;1;Spese correnti;10;Altre spese correnti;3;Versamenti IVA a debito;1;Versamenti IVA a debito per le gestioni commerciali;1;Versamenti IVA a debito per le gestioni commerciali;06/11/2018
1002;1;0;9.650,43;11.306,88;COMUNE DI ESTE; ;Servizio di polizia locale anno 2017 (Convenzione del 30.12.2016 Rep. n. 590) -  Atto Liq. Area Servizi Amministrativi e Contabili n. 226 del 08.11.2018;08/11/2018;2200;0;415;1;Spese correnti;3;Acquisto di beni e servizi;2;Acquisto di servizi;99;Altri servizi;999;Altri servizi diversi n.a.c.;08/11/2018
1002;2;0;1.656,45;11.306,88;COMUNE DI ESTE; ;Servizio di polizia locale anno 2017 (Convenzione del 30.12.2016 Rep. n. 590) -  Atto Liq. Area Servizi Amministrativi e Contabili n. 226 del 08.11.2018;08/11/2018;2200;0;415;1;Spese correnti;3;Acquisto di beni e servizi;2;Acquisto di servizi;99;Altri servizi;999;Altri servizi diversi n.a.c.;08/11/2018
1003;1;0;14,78;62,36;E.ON Energia S.p.a.;Z7113FE6B2;SALDO Fatt.n. 40007414  del 02/11/2018 Fornitura gas naturale utenza Sede Municipale (matricola contatore 0030155066) periodo dal 18.04.2018 al 24.09.2018;12/11/2018;4751;0;60;1;Spese correnti;3;Acquisto di beni e servizi;2;Acquisto di servizi;5;Utenze e canoni;6;Gas;12/11/2018
1003;2;0;47,58;62,36;E.ON Energia S.p.a.;Z7113FE6B2;SALDO Fatt.n. 40007890  del 02/11/2018 Fornitura gas naturale utenza Sede Municipale (matricola contatore MTX0000045006563) periodo dal 01.09.2018 al 25.09.2018;12/11/2018;4751;0;60;1;Spese correnti;3;Acquisto di beni e servizi;2;Acquisto di servizi;5;Utenze e canoni;6;Gas;12/11/2018
1004;1;0;13,49;13,49;E.ON Energia S.p.a.;Z7113FE6B2;SALDO Fatt.n. 40007892  del 02/11/2018 Fornitura gas naturale utenza Immobile Piazzetta Martiri periodo dal 30.08.2018 al 25.09.2018;12/11/2018;1405;0;59;1;Spese correnti;3;Acquisto di beni e servizi;2;Acquisto di servizi;5;Utenze e canoni;6;Gas;12/11/2018
1005;1;0;51,16;51,16;E.ON Energia S.p.a.;Z7113FE6B2;SALDO Fatt.n. 40007891  del 02/11/2018 Fornitura gas naturale utenza Polo Scolastico periodo dal 01.08.2018 al 25.09.2018;12/11/2018;31801;0;63;1;Spese correnti;3;Acquisto di beni e servizi;2;Acquisto di servizi;5;Utenze e canoni;6;Gas;12/11/2018
1006;1;0;1.952,00;1.952,00;JANUS SECURITY di Vitale Pierpaolo;ZB724742E8;SALDO Fatt.n. 81  del 31/08/2018 Fattura per piano di sicurezza e servizio svolto durante la Fiera di S. Lorenzo in data 10/08/2018;12/11/2018;790;0;237;1;Spese correnti;3;Acquisto di beni e servizi;2;Acquisto di servizi;99;Altri servizi;999;Altri servizi diversi n.a.c.;12/11/2018
1007;1;0;1.159,00;1.159,00;Sicurya s.r.l.;Z1F19ABFDD;SALDO Fatt.n. 0000025/PA  del 31/10/2018 saldo 50% competenze per incarico R.S.P.P. anno 2018;12/11/2018;785;0;129;1;Spese correnti;3;Acquisto di beni e servizi;2;Acquisto di servizi;4;Acquisto di servizi per formazione e addestramento del personale dell'ente;4;Acquisto di servizi per formazione obbligatoria;12/11/2018
1008;1;0;520,83;520,83;EDISON FACILITY SOLUTIONS spa;Z0C2048D18;ACCONTO Fatt.n. 530/VPA  del 14/10/2018 Contratto gestione calore - seconda rata fino a ottobre 2018;12/11/2018;1400;0;319;1;Spese correnti;3;Acquisto di beni e servizi;2;Acquisto di servizi;9;Manutenzione ordinaria e riparazioni;8;Manutenzione ordinaria e riparazioni di beni immobili;12/11/2018
1009;1;0;420,24;420,24;EDISON FACILITY SOLUTIONS spa;Z0C2048D18;ACCONTO Fatt.n. 530/VPA  del 14/10/2018 Contratto gestione calore - seconda rata fino a ottobre 2018;12/11/2018;1310;0;318;1;Spese correnti;3;Acquisto di beni e servizi;2;Acquisto di servizi;9;Manutenzione ordinaria e riparazioni;8;Manutenzione ordinaria e riparazioni di beni immobili;12/11/2018
1010;1;0;241,5;241,5;EDISON FACILITY SOLUTIONS spa;Z0C2048D18;ACCONTO Fatt.n. 530/VPA  del 14/10/2018 Contratto gestione calore - seconda rata fino a ottobre 2018;12/11/2018;2810;0;317;1;Spese correnti;3;Acquisto di beni e servizi;2;Acquisto di servizi;99;Altri servizi;999;Altri servizi diversi n.a.c.;12/11/2018
1011;1;0;1.087,22;1.087,22;EDISON FACILITY SOLUTIONS spa;Z0C2048D18;ACCONTO Fatt.n. 530/VPA  del 14/10/2018 Contratto gestione calore - seconda rata fino a ottobre 2018;12/11/2018;476;0;316;1;Spese correnti;3;Acquisto di beni e servizi;2;Acquisto di servizi;9;Manutenzione ordinaria e riparazioni;8;Manutenzione ordinaria e riparazioni di beni immobili;12/11/2018
1012;1;0;602;602;EDISON FACILITY SOLUTIONS spa;Z0C2048D18;ACCONTO Fatt.n. 530/VPA  del 14/10/2018 Contratto gestione calore - seconda rata fino a ottobre 2018;12/11/2018;2975;0;315;1;Spese correnti;3;Acquisto di beni e servizi;2;Acquisto di servizi;99;Altri servizi;999;Altri servizi diversi n.a.c.;12/11/2018
1013;1;0;1.200,00;1.200,00;EDISON FACILITY SOLUTIONS spa;Z0C2048D18;SALDO Fatt.n. 530/VPA  del 14/10/2018 Contratto gestione calore - seconda rata fino a ottobre 2018;12/11/2018;3185;0;314;1;Spese correnti;3;Acquisto di beni e servizi;2;Acquisto di servizi;99;Altri servizi;999;Altri servizi diversi n.a.c.;12/11/2018
1014;1;0;400;400;Verde Capriccio s.n.c. di Zielo C. & C.;Z732536A3C;SALDO Fatt.n. 0000003  del 05/11/2018 Fornitura ciotole di fiori per i cimiteri novembre 2018;12/11/2018;5180;0;316;1;Spese correnti;3;Acquisto di beni e servizi;1;Acquisto di beni;2;Altri beni di consumo;999;Altri beni e materiali di consumo n.a.c.;12/11/2018
1015;1;0;120,3;120,3;FLOWER GLOVES srl Unipersonale;ZD02123263;SALDO Fatt.n. PA0152  del 30/04/2018 Fornitura tuta operai;12/11/2018;765;0;390;1;Spese correnti;3;Acquisto di beni e servizi;1;Acquisto di beni;2;Altri beni di consumo;4;Vestiario;12/11/2018
1016;1;0;12.281,03;12.281,03;PROVINCIA DI PADOVA; ;Tributo Provinciale per l'esercizio Funzione Tutela e Protezione Ambiente anno 2018 - a.l. UTC N. 225 DEL 08.11.2018;12/11/2018;1490;0;349;1;Spese correnti;4;Trasferimenti correnti;1;Trasferimenti correnti a Amministrazioni Pubbliche;2;Trasferimenti correnti a Amministrazioni Locali;2;Trasferimenti correnti a Province;12/11/2018
1017;1;0;1.348,80;1.348,80;Comune di Montegrotto Terme; ;"Quota di funzionamento ""O.G.D. Terme e Colli Euganei"" anno 2018 - a.l. ac n. 202 del 05.10.2018";12/11/2018;7150;0;321;1;Spese correnti;4;Trasferimenti correnti;1;Trasferimenti correnti a Amministrazioni Pubbliche;2;Trasferimenti correnti a Amministrazioni Locali;3;Trasferimenti correnti a Comuni;12/11/2018
1019;1;0;1,2;1,2;ECONOMO COMUNALE; ;RIFUSIONE BUONI ECONOMATO N. 70 - A.L. AC N. 227  DEL 09.11.2018;12/11/2018;230;0;6;1;Spese correnti;3;Acquisto di beni e servizi;2;Acquisto di servizi;1;Organi e incarichi istituzionali dell'amministrazione;2;Organi istituzionali dell'amministrazione - Rimborsi;12/11/2018
1020;1;0;50,6;50,6;ECONOMO COMUNALE; ;Rifusione buoni economato n. 60 67 68 72 - A.L. AC N. 227 DEL 09.11.2018;12/11/2018;1305;0;111;1;Spese correnti;3;Acquisto di beni e servizi;1;Acquisto di beni;2;Altri beni di consumo;999;Altri beni e materiali di consumo n.a.c.;12/11/2018
1021;1;0;211;211;ECONOMO COMUNALE; ;Rifusione buoni economato n. 65 71 73;12/11/2018;4754;0;110;1;Spese correnti;3;Acquisto di beni e servizi;1;Acquisto di beni;2;Altri beni di consumo;999;Altri beni e materiali di consumo n.a.c.;12/11/2018
1022;1;0;20;20;ECONOMO COMUNALE; ;Rifusione buono economato n. 63 - A.L. AC N. 227 DEL 09.11.2018;12/11/2018;28002;0;113;1;Spese correnti;3;Acquisto di beni e servizi;1;Acquisto di beni;2;Altri beni di consumo;999;Altri beni e materiali di consumo n.a.c.;12/11/2018
1023;1;0;53,8;53,8;ECONOMO COMUNALE; ;Rifusione buoni economato n. 61 66 69 75 - A.L. AC N. 227 DEL 09.11.2018;12/11/2018;29702;0;114;1;Spese correnti;3;Acquisto di beni e servizi;1;Acquisto di beni;2;Altri beni di consumo;999;Altri beni e materiali di consumo n.a.c.;12/11/2018
1024;1;0;30,2;30,2;ECONOMO COMUNALE; ;Rifusione buoni economato n. 62 64 74 - A.L. AC N. 227 DEL 09.11.2018;12/11/2018;31802;0;115;1;Spese correnti;3;Acquisto di beni e servizi;1;Acquisto di beni;2;Altri beni di consumo;999;Altri beni e materiali di consumo n.a.c.;12/11/2018
1025;1;0;547,2;547,2;COMUNE DI ESTE; ;Servizio di vigilanza in occasione delle Festa dell'Uva 2018 - A.L. AC N. 228 DEL 12.11.2018;13/11/2018;2200;0;318;1;Spese correnti;3;Acquisto di beni e servizi;2;Acquisto di servizi;99;Altri servizi;999;Altri servizi diversi n.a.c.;13/11/2018
1026;1;0;340,44;340,44;COMUNE DI ESTE; ;Servizio di vigilanza in occasione della Fiera di S.Lorenzo 2018 - AL AC N. 228 DEL 12.11.2018;13/11/2018;2200;0;317;1;Spese correnti;3;Acquisto di beni e servizi;2;Acquisto di servizi;99;Altri servizi;999;Altri servizi diversi n.a.c.;13/11/2018
1027;1;0;119,84;3.734,15;ALFONSO MARIA RAFFAELLA; ;SALDO Fatt.n. 3/PA  del 22/10/2018 Fornitura libri alunni scuole elementari AS 2018/2019;13/11/2018;2950;0;183;1;Spese correnti;3;Acquisto di beni e servizi;1;Acquisto di beni;2;Altri beni di consumo;999;Altri beni e materiali di consumo n.a.c.;13/11/2018
1027;2;0;172,18;3.734,15;Bortoli di Bortoli Dario & C. S.N.C.; ;SALDO Fatt.n. 7  del 24/10/2018 Fornitura libri alunni scuole elementari AS 2018/2019;13/11/2018;2950;0;183;1;Spese correnti;3;Acquisto di beni e servizi;1;Acquisto di beni;2;Altri beni di consumo;999;Altri beni e materiali di consumo n.a.c.;13/11/2018
1027;3;0;3.419,56;3.734,15;Cartoleria Raffaella di Zattarin Maria Grazia; ;SALDO Fatt.n. 2/PA  del 18/10/2018 Fornitura libri alunni scuole elementari Vo';13/11/2018;2950;0;183;1;Spese correnti;3;Acquisto di beni e servizi;1;Acquisto di beni;2;Altri beni di consumo;999;Altri beni e materiali di consumo n.a.c.;13/11/2018
1027;4;0;22,57;3.734,15;SOSTARO CHIARA; ;SALDO Fatt.n. 02  del 31/10/2018 FORNITURA LIBRI DI TESTO SCUOLA ELEMENTARE;13/11/2018;2950;0;183;1;Spese correnti;3;Acquisto di beni e servizi;1;Acquisto di beni;2;Altri beni di consumo;999;Altri beni e materiali di consumo n.a.c.;13/11/2018
1028;1;0;685,13;2.433,38;CODESS SOCIALE;684143311D;ACCONTO Fatt.n. 5536/PA  del 24/10/2018 PRESTAZIONI SOCIO SANITARIE-SERVIZIO DI ASSISTENZA SOCIALE E DOMICILIARE  AGOSTO 2018;13/11/2018;6980;0;435;1;Spese correnti;3;Acquisto di beni e servizi;2;Acquisto di servizi;15;Contratti di servizio pubblico;9;Contratti di servizio di assistenza sociale domiciliare;13/11/2018
1028;2;0;1.748,25;2.433,38;CODESS SOCIALE;684143311D;ACCONTO Fatt.n. 5538/PA  del 24/10/2018 PRESTAZIONI SOCIO SANITARIE-SERVIZIO DI ASSISTENZA SOCIALE E DOMICILIARE SETTEMBRE 2018;13/11/2018;6980;0;435;1;Spese correnti;3;Acquisto di beni e servizi;2;Acquisto di servizi;15;Contratti di servizio pubblico;9;Contratti di servizio di assistenza sociale domiciliare;13/11/2018
1029;1;0;2.716,19;5.671,78;CODESS SOCIALE;684143311D;SALDO Fatt.n. 5538/PA  del 24/10/2018 PRESTAZIONI SOCIO SANITARIE-SERVIZIO DI ASSISTENZA SOCIALE E DOMICILIARE SETTEMBRE 2018;13/11/2018;6990;0;436;1;Spese correnti;3;Acquisto di beni e servizi;2;Acquisto di servizi;15;Contratti di servizio pubblico;9;Contratti di servizio di assistenza sociale domiciliare;13/11/2018
1029;2;0;2.955,59;5.671,78;CODESS SOCIALE;684143311D;SALDO Fatt.n. 5536/PA  del 24/10/2018 PRESTAZIONI SOCIO SANITARIE-SERVIZIO DI ASSISTENZA SOCIALE E DOMICILIARE  AGOSTO 2018;13/11/2018;6990;0;436;1;Spese correnti;3;Acquisto di beni e servizi;2;Acquisto di servizi;15;Contratti di servizio pubblico;9;Contratti di servizio di assistenza sociale domiciliare;13/11/2018
1030;1;0;1.218,78;1.218,78;Societa' Cooperativa ANT s.c.a.r.l.;ZF72483D82;SALDO Fatt.n. 49/2018  del 31/08/2018 Gestione intrattenimenti musicali durante Fiera di S. Lorenzo 2018;13/11/2018;8888;0;240;1;Spese correnti;3;Acquisto di beni e servizi;2;Acquisto di servizi;99;Altri servizi;999;Altri servizi diversi n.a.c.;13/11/2018
1031;1;0;4.244,04;4.244,04;COOPERATIVA SOCIALE SERVIZI ASSOCIATI;7079166895;SALDO Fatt.n. D-447  del 31/10/2018;13/11/2018;3413;0;279;1;Spese correnti;3;Acquisto di beni e servizi;2;Acquisto di servizi;15;Contratti di servizio pubblico;2;Contratti di servizio di trasporto scolastico;13/11/2018
1032;1;0;2.601,61;2.601,61;Sodexo Italia Spa;64630250F4;SALDO Fatt.n. 7400048244  del 31/10/2018 Fornitura pasti alunni scuola materna ottobre 2018;13/11/2018;3404;0;65;1;Spese correnti;3;Acquisto di beni e servizi;2;Acquisto di servizi;15;Contratti di servizio pubblico;6;Contratti di servizio per le mense scolastiche;13/11/2018
1033;1;0;3.226,95;3.226,95;Sodexo Italia Spa;64630250F4;SALDO Fatt.n. 7400048245  del 31/10/2018 Fornitura pasti  alunni scuole elementari - ottobre 2018;13/11/2018;3406;0;66;1;Spese correnti;3;Acquisto di beni e servizi;2;Acquisto di servizi;15;Contratti di servizio pubblico;6;Contratti di servizio per le mense scolastiche;13/11/2018
1034;1;0;559,88;559,88;Sodexo Italia Spa;64630250F4;SALDO Fatt.n. 7400048246  del 31/10/2018 Servizio di sorveglianza refettorio ottobre 2018;13/11/2018;3406;0;154;1;Spese correnti;3;Acquisto di beni e servizi;2;Acquisto di servizi;15;Contratti di servizio pubblico;6;Contratti di servizio per le mense scolastiche;13/11/2018
1035;1;0;750;750;"CASA DI RIPOSO ""A. SIMIONATI"""; ;SALDO Fatt.n. 136/E  del 31/10/2018 Quota retta di ricovero R.R. ottobre 2018;13/11/2018;6875;0;15;1;Spese correnti;3;Acquisto di beni e servizi;2;Acquisto di servizi;99;Altri servizi;999;Altri servizi diversi n.a.c.;13/11/2018
1036;1;0;1,15;2,3;BANCA MONTE DEI PASCHI DI SIENA S.p.A.;Z772239A29;Spese per estratto conto POS mese di settembre 2018  -  provv. 150;19/11/2018;600;0;143;1;Spese correnti;3;Acquisto di beni e servizi;2;Acquisto di servizi;17;Servizi finanziari;2;Oneri per servizio di tesoreria;19/11/2018
1036;2;0;1,15;2,3;BANCA MONTE DEI PASCHI DI SIENA S.p.A.;Z772239A29;Spese per estratto conto POS mese di ottobre 2018  -  provv. 158;19/11/2018;600;0;143;1;Spese correnti;3;Acquisto di beni e servizi;2;Acquisto di servizi;17;Servizi finanziari;2;Oneri per servizio di tesoreria;19/11/2018
1037;1;0;66,76;151,04;Illumia S.p.A.;Z0E14167CF;SALDO Fatt.n. 6905-PE  del 19/10/2018 Fornitura energia elettrica utenza ex scuola Vo' Vecchio periodo agosto / settembre 2018  -  provv. 174;19/11/2018;1330;0;263;1;Spese correnti;3;Acquisto di beni e servizi;2;Acquisto di servizi;5;Utenze e canoni;4;Energia elettrica;19/11/2018
1037;2;0;84,28;151,04;Illumia S.p.A.;Z0E14167CF;SALDO Fatt.n. 7245-PE  del 19/10/2018 Fornitura energia elettrica utenza ex scuola Zovon periodo agosto / settembre 2018  -  provv. 162;19/11/2018;1330;0;263;1;Spese correnti;3;Acquisto di beni e servizi;2;Acquisto di servizi;5;Utenze e canoni;4;Energia elettrica;19/11/2018
1038;1;0;5.975,53;5.975,53;Illumia S.p.A.;Z0E14167CF;ACCONTO Fatt.n. 7243-PE  del 19/10/2018 Fornitura energia elettrica utenze illuminazione pubblica periodo agosto / settembre 2018  -  provv. 160;19/11/2018;7420;0;268;1;Spese correnti;3;Acquisto di beni e servizi;2;Acquisto di servizi;5;Utenze e canoni;4;Energia elettrica;19/11/2018
1039;1;0;989,25;989,25;Illumia S.p.A.;Z0E14167CF;SALDO Fatt.n. 7243-PE  del 19/10/2018 Fornitura energia elettrica utenze illuminazione pubblica periodo agosto / settembre 2018  -  provv. 160;19/11/2018;7420;0;335;1;Spese correnti;3;Acquisto di beni e servizi;2;Acquisto di servizi;5;Utenze e canoni;4;Energia elettrica;19/11/2018
1040;1;0;45,18;432,83;Illumia S.p.A.;Z0E14167CF;SALDO Fatt.n. 7244-PE  del 19/10/2018 Fornitura energia elettrica utenza illuminazione pubblica (POD IT001E32268714) mese di settembre 2018  -  provv. 161;19/11/2018;7420;0;335;1;Spese correnti;3;Acquisto di beni e servizi;2;Acquisto di servizi;5;Utenze e canoni;4;Energia elettrica;19/11/2018
1040;2;0;82,97;432,83;Illumia S.p.A.;Z0E14167CF;SALDO Fatt.n. 6909-PE  del 19/10/2018 Fornitura energia elettrica utenza ill. pubblica (POD IT001E01499192) periodo agosto / settembre 2018  -  provv. 168;19/11/2018;7420;0;335;1;Spese correnti;3;Acquisto di beni e servizi;2;Acquisto di servizi;5;Utenze e canoni;4;Energia elettrica;19/11/2018
1040;3;0;121,19;432,83;Illumia S.p.A.;Z0E14167CF;SALDO Fatt.n. 6914-PE  del 19/10/2018 Fornitura energia elettrica utenza torretta Piazzetta Spolverato mese di settembre 2018  -  provv. 173;19/11/2018;7420;0;335;1;Spese correnti;3;Acquisto di beni e servizi;2;Acquisto di servizi;5;Utenze e canoni;4;Energia elettrica;19/11/2018
1040;4;0;183,49;432,83;Illumia S.p.A.;Z0E14167CF;SALDO Fatt.n. 7246-PE  del 19/10/2018 Fornitura energia elettrica utenza ill. pubblica (lottizzazione Canaletto) periodo agosto / settembre 2018  -  provv. 163;19/11/2018;7420;0;335;1;Spese correnti;3;Acquisto di beni e servizi;2;Acquisto di servizi;5;Utenze e canoni;4;Energia elettrica;19/11/2018
1041;1;0;296,77;296,77;Illumia S.p.A.;Z0E14167CF;SALDO Fatt.n. 6912-PE  del 19/10/2018 Fornitura energia elettrica utenza Sede Municipale mese di settembre 2018  -  provv. 171;19/11/2018;4751;0;259;1;Spese correnti;3;Acquisto di beni e servizi;2;Acquisto di servizi;5;Utenze e canoni;4;Energia elettrica;19/11/2018
1042;1;0;72,66;550,39;Illumia S.p.A.;Z0E14167CF;SALDO Fatt.n. 6908-PE  del 19/10/2018 Fornitura energia elettrica utenza Villa Venier (POD IT001E35511792) periodo agosto / settembre 2018  -  provv. 164;19/11/2018;1312;0;266;1;Spese correnti;3;Acquisto di beni e servizi;2;Acquisto di servizi;5;Utenze e canoni;4;Energia elettrica;19/11/2018
1042;2;0;72,66;550,39;Illumia S.p.A.;Z0E14167CF;SALDO Fatt.n. 7247-PE  del 19/10/2018 Fornitura energia elettrica utenza Villa Venier (POD IT001E35511782) periodo agosto / settembre 2018  -  provv. 167;19/11/2018;1312;0;266;1;Spese correnti;3;Acquisto di beni e servizi;2;Acquisto di servizi;5;Utenze e canoni;4;Energia elettrica;19/11/2018
1042;3;0;84,28;550,39;Illumia S.p.A.;Z0E14167CF;SALDO Fatt.n. 6907-PE  del 19/10/2018 Fornitura energia elettrica utenza Villa Venier  (POD IT001E04020277)  periodo agosto / settembre 2018  -  provv. 172;19/11/2018;1312;0;266;1;Spese correnti;3;Acquisto di beni e servizi;2;Acquisto di servizi;5;Utenze e canoni;4;Energia elettrica;19/11/2018
1042;4;0;84,28;550,39;Illumia S.p.A.;Z0E14167CF;SALDO Fatt.n. 6913-PE  del 19/10/2018 Fornitura energia elettrica utenza Villa Venier (POD IT001E04020273) periodo agosto / settembre 2018  -  provv. 166;19/11/2018;1312;0;266;1;Spese correnti;3;Acquisto di beni e servizi;2;Acquisto di servizi;5;Utenze e canoni;4;Energia elettrica;19/11/2018
1042;5;0;236,51;550,39;Illumia S.p.A.;Z0E14167CF;SALDO Fatt.n. 6911-PE  del 19/10/2018 Fornitura energia elettrica utenza Villa Venier (POD IT001E34674161) mese di settembre 2018  -  provv. 170;19/11/2018;1312;0;266;1;Spese correnti;3;Acquisto di beni e servizi;2;Acquisto di servizi;5;Utenze e canoni;4;Energia elettrica;19/11/2018
1043;1;0;311,93;311,93;Illumia S.p.A.;Z0E14167CF;SALDO Fatt.n. 6910-PE  del 19/10/2018 Fornitura energia elettrica utenza Immobile Piazzetta Martiri mese di settembre 2018  -  provv. 169;19/11/2018;1405;0;267;1;Spese correnti;3;Acquisto di beni e servizi;2;Acquisto di servizi;5;Utenze e canoni;4;Energia elettrica;19/11/2018
1044;1;0;161,17;161,17;Illumia S.p.A.;Z0E14167CF;SALDO Fatt.n. 7248-PE  del 19/10/2018 Fornitura energia elettrica utenza magazzino comunale periodo agosto / settembre 2018  -  provv. 165;19/11/2018;1450;0;265;1;Spese correnti;3;Acquisto di beni e servizi;2;Acquisto di servizi;5;Utenze e canoni;4;Energia elettrica;19/11/2018
1045;1;0;203,22;203,22;Illumia S.p.A.;Z0E14167CF;ACCONTO Fatt.n. 6906-PE  del 19/10/2018 Fornitura energia elettrica utenza Polo Scolastico mese di settembre 2018  -  provv. 175;19/11/2018;28001;0;260;1;Spese correnti;3;Acquisto di beni e servizi;2;Acquisto di servizi;5;Utenze e canoni;4;Energia elettrica;19/11/2018
1046;1;0;203,22;203,22;Illumia S.p.A.;Z0E14167CF;ACCONTO Fatt.n. 6906-PE  del 19/10/2018 Fornitura energia elettrica utenza Polo Scolastico mese di settembre 2018  -  provv. 175;19/11/2018;29701;0;261;1;Spese correnti;3;Acquisto di beni e servizi;2;Acquisto di servizi;5;Utenze e canoni;4;Energia elettrica;19/11/2018
1047;1;0;203,19;203,19;Illumia S.p.A.;Z0E14167CF;SALDO Fatt.n. 6906-PE  del 19/10/2018 Fornitura energia elettrica utenza Polo Scolastico mese di settembre 2018  -  provv. 175;19/11/2018;31801;0;262;1;Spese correnti;3;Acquisto di beni e servizi;2;Acquisto di servizi;5;Utenze e canoni;4;Energia elettrica;19/11/2018
1074;1;0;3.254,96;3.254,96;Applab S.r.l.;ZB12544EBA;"SALDO Fatt.n. 000001-2018-FE  del 19/11/2018 REALIZZAZIONE SISTEMA QR CODE progetto ""Rigenerare territori, coltivare innovazioni""";21/11/2018;7100;0;322;1;Spese correnti;10;Altre spese correnti;99;Altre spese correnti n.a.c.;99;Altre spese correnti n.a.c.;999;Altre spese correnti n.a.c.;21/11/2018
1075;1;0;36.290,30;36.290,30;Gestioni Grafiche Stocchiero s.r.l.;Z1C2556924;SALDO Fatt.n. FATTPA 8_18  del 19/11/2018 Fornitura ed installazione pannelli informativi percorsi rurali;21/11/2018;7100;0;322;1;Spese correnti;10;Altre spese correnti;99;Altre spese correnti n.a.c.;99;Altre spese correnti n.a.c.;999;Altre spese correnti n.a.c.;21/11/2018
1076;1;0;6.344,00;6.344,00;BALDESCHI DANIELA;Z271F06648;"SALDO Fatt.n. 03/2018/PA  del 20/11/2018 Saldo competenze progetto esecutivo""Rigenerare territori, coltivare innovazioni""";21/11/2018;7100;0;203;1;Spese correnti;10;Altre spese correnti;99;Altre spese correnti n.a.c.;99;Altre spese correnti n.a.c.;999;Altre spese correnti n.a.c.;21/11/2018
1078;1;0;335,5;1.645,89;Centro Veneto Disinfestazioni s.r.l.;Z5024D3F12;SALDO Fatt.n. 194/2018  del 18/11/2018 INTERVENTO DI DISINFESTAZIONE ADULTICIDA ZANZARE;21/11/2018;1302;0;282;1;Spese correnti;3;Acquisto di beni e servizi;2;Acquisto di servizi;9;Manutenzione ordinaria e riparazioni;8;Manutenzione ordinaria e riparazioni di beni immobili;21/11/2018
1078;2;0;1.310,39;1.645,89;Centro Veneto Disinfestazioni s.r.l.;Z5024D3F12;SALDO Fatt.n. 193/2018  del 18/11/2018 INTERVENTO STRAORDINARIO DI DISINFESTAZIONE ZANZARE COME DA PIANO DELLA REGIONE VENETO.;21/11/2018;1302;0;282;1;Spese correnti;3;Acquisto di beni e servizi;2;Acquisto di servizi;9;Manutenzione ordinaria e riparazioni;8;Manutenzione ordinaria e riparazioni di beni immobili;21/11/2018
1079;1;0;264,5;264,5;MAGAZZINI AMBROSI S.A.S. DI AMBROSI FABIO E TIZIANA;Z422386491;SALDO Fatt.n. 23  del 20/11/2018 Fornitura materiale da ferramenta per lavori in economia;21/11/2018;1300;0;241;1;Spese correnti;3;Acquisto di beni e servizi;1;Acquisto di beni;2;Altri beni di consumo;999;Altri beni e materiali di consumo n.a.c.;21/11/2018
1080;1;0;219,18;219,18;BOGONI ALFONSO & C. S.A.S.;Z9E1D16AO2;ACCONTO Fatt.n. V0000010FE  del 31/10/2018 Fornitura carburante mese di ottobre 2018;21/11/2018;570;0;39;1;Spese correnti;3;Acquisto di beni e servizi;1;Acquisto di beni;2;Altri beni di consumo;2;Carburanti, combustibili e lubrificanti;21/11/2018
1081;1;0;107,82;107,82;BOGONI ALFONSO & C. S.A.S.;Z9E1D16AO2;SALDO Fatt.n. V0000010FE  del 31/10/2018 Fornitura carburante mese di ottobre 2018;21/11/2018;570;0;350;1;Spese correnti;3;Acquisto di beni e servizi;1;Acquisto di beni;2;Altri beni di consumo;2;Carburanti, combustibili e lubrificanti;21/11/2018
1082;1;0;136,76;136,76;PROVINCIA DI PADOVA; ;Addizionale provinciale sul tributo smaltimento rifiuti solidi urbani delle istituzioni scolastiche anno 2016 e 2017 - A.L. AC N. 237 DEL 13.11.2018;21/11/2018;1490;0;438;1;Spese correnti;4;Trasferimenti correnti;1;Trasferimenti correnti a Amministrazioni Pubbliche;2;Trasferimenti correnti a Amministrazioni Locali;2;Trasferimenti correnti a Province;21/11/2018
1083;1;0;1.045,00;1.045,00;ZEFIRO SRL;Z3D1A45638;ACCONTO Fatt.n. 42/PA  del 31/10/2018 Servizio di pulizia edifici comunali MESE di OTTOBRE 2018;21/11/2018;475;0;301;1;Spese correnti;3;Acquisto di beni e servizi;2;Acquisto di servizi;99;Altri servizi;999;Altri servizi diversi n.a.c.;21/11/2018
1084;1;0;262,18;262,18;ZEFIRO SRL;Z3D1A45638;ACCONTO Fatt.n. 42/PA  del 31/10/2018 Servizio di pulizia edifici comunali MESE di OTTOBRE 2018;21/11/2018;2973;0;302;1;Spese correnti;3;Acquisto di beni e servizi;2;Acquisto di servizi;99;Altri servizi;999;Altri servizi diversi n.a.c.;21/11/2018
1085;1;0;294,75;294,75;ZEFIRO SRL;Z3D1A45638;ACCONTO Fatt.n. 42/PA  del 31/10/2018 Servizio di pulizia edifici comunali MESE di OTTOBRE 2018;21/11/2018;37601;0;303;1;Spese correnti;3;Acquisto di beni e servizi;2;Acquisto di servizi;99;Altri servizi;999;Altri servizi diversi n.a.c.;21/11/2018
1086;1;0;174,85;174,85;ZEFIRO SRL;Z3D1A45638;SALDO Fatt.n. 42/PA  del 31/10/2018 Servizio di pulizia edifici comunali MESE di OTTOBRE 2018;21/11/2018;1400;0;304;1;Spese correnti;3;Acquisto di beni e servizi;2;Acquisto di servizi;9;Manutenzione ordinaria e riparazioni;8;Manutenzione ordinaria e riparazioni di beni immobili;21/11/2018
1087;1;0;219,48;219,48;ELETTRIKA S.r.l.;Z6324D9C6F;SALDO Fatt.n. 13/PA  del 29/09/2018 Fornitura materiale elettrico mese di settembre 2018;21/11/2018;1300;0;286;1;Spese correnti;3;Acquisto di beni e servizi;1;Acquisto di beni;2;Altri beni di consumo;999;Altri beni e materiali di consumo n.a.c.;21/11/2018
1088;1;0;150;150;OMESSO NOMINATIVO NEL RISPETTO DELLA NORMATIVA SULLA PROTEZIONE DATI PERSONALI; ;Erogazione contributi economici novembre 2018 - A.L. AC N. 87 DEL 24.04.2018;21/11/2018;6935;0;131;1;Spese correnti;4;Trasferimenti correnti;2;Trasferimenti correnti a Famiglie;5;Altri trasferimenti a famiglie;999;Altri trasferimenti a famiglie n.a.c.;21/11/2018
1089;1;0;90,48;90,48;Vodafone Italia S.p.A.;ZD11381BD3;ACCONTO Fatt.n. AI21115704  del 21/11/2018 Spese per telefonia mobile periodo dal 17.09.2018 al 16.11.2018;27/11/2018;4751;0;119;1;Spese correnti;3;Acquisto di beni e servizi;2;Acquisto di servizi;5;Utenze e canoni;2;Telefonia mobile;27/11/2018
1090;1;0;457;457;Vodafone Italia S.p.A.;Z941E11750;ACCONTO Fatt.n. AI21115704  del 21/11/2018 Spese telefoniche utenze Sede Municipale periodo dal 17.09.2018 al 16.11.2018;27/11/2018;4751;0;143;1;Spese correnti;3;Acquisto di beni e servizi;2;Acquisto di servizi;5;Utenze e canoni;1;Telefonia fissa;27/11/2018
1091;1;0;83,69;83,69;Vodafone Italia S.p.A.;Z941E11750;ACCONTO Fatt.n. AI21115704  del 21/11/2018 Spese telefooniche utenze Sede Municipale periodo dal 17.09.2018 al 16.11.2018;27/11/2018;4751;0;312;1;Spese correnti;3;Acquisto di beni e servizi;2;Acquisto di servizi;5;Utenze e canoni;1;Telefonia fissa;27/11/2018
1092;1;0;109,56;109,56;Vodafone Italia S.p.A.;Z941E11750;ACCONTO Fatt.n. AI21115704  del 21/11/2018 Spese telefoniche utenza Villa Venier periodo dal 17.09.2018 al 16.11.2018;27/11/2018;1312;0;310;1;Spese correnti;3;Acquisto di beni e servizi;2;Acquisto di servizi;5;Utenze e canoni;1;Telefonia fissa;27/11/2018
1093;1;0;97,36;97,36;Vodafone Italia S.p.A.;Z941E11750;ACCONTO Fatt.n. AI21115704  del 21/11/2018 Spese telefoniche utenza biblioteca comunale periodo dal 17.09.2018 al 16.11.2018;27/11/2018;3761;0;311;1;Spese correnti;3;Acquisto di beni e servizi;2;Acquisto di servizi;5;Utenze e canoni;1;Telefonia fissa;27/11/2018
1094;1;0;161,86;161,86;Vodafone Italia S.p.A.;Z941E11750;ACCONTO Fatt.n. AI21115704  del 21/11/2018 Spese telefoniche utenza Scuola dell'Infanzia periodo dal 17.09.2018 al 16.11.2018;27/11/2018;28001;0;140;1;Spese correnti;3;Acquisto di beni e servizi;2;Acquisto di servizi;5;Utenze e canoni;1;Telefonia fissa;27/11/2018
1095;1;0;161,86;161,86;Vodafone Italia S.p.A.;Z941E11750;ACCONTO Fatt.n. AI21115704  del 21/11/2018 Spese telefoniche utenza Scuola Primaria periodo dal 17.09.2018 al 16.11.2018;27/11/2018;29701;0;141;1;Spese correnti;3;Acquisto di beni e servizi;2;Acquisto di servizi;5;Utenze e canoni;1;Telefonia fissa;27/11/2018
1096;1;0;161,84;161,84;Vodafone Italia S.p.A.;Z941E11750;SALDO Fatt.n. AI21115704  del 21/11/2018 Spese per telefonia mobile e fissa utenze comunali periodo dal 17.09.2018 al 16.11.2018;27/11/2018;31801;0;142;1;Spese correnti;3;Acquisto di beni e servizi;2;Acquisto di servizi;5;Utenze e canoni;1;Telefonia fissa;27/11/2018
1097;1;0;864,8;864,8;CONSORZIO BIBLIOTECHE PADOVANE ASSOCIATE; ;Acquisto centralizzato di libri per la Biblioteca Comunale 2018 - A.L. 250 DEL 26.11.2018;27/11/2018;3760;0;360;1;Spese correnti;3;Acquisto di beni e servizi;2;Acquisto di servizi;99;Altri servizi;999;Altri servizi diversi n.a.c.;27/11/2018
1098;1;0;9.800,00;9.800,00;CONSORZIO BIBLIOTECHE PADOVANE ASSOCIATE; ;Acconto servizio di gestione della biblioteca comunale anno 2018 - A.L. AC N. 249 DEL 26.11.2018;27/11/2018;3760;0;413;1;Spese correnti;3;Acquisto di beni e servizi;2;Acquisto di servizi;99;Altri servizi;999;Altri servizi diversi n.a.c.;27/11/2018
1099;1;0;1.091,47;1.091,47;ISTITUTO COMPRENSIVO LOZZO ATESTINO; ;Cntributo per l'acquisto di materiale per la pulizia delle Scuole di Vo' - anno scolastico 2018/2019 - A.L. AC N. 245 DEL 26.11.2018;27/11/2018;3425;0;364;1;Spese correnti;4;Trasferimenti correnti;1;Trasferimenti correnti a Amministrazioni Pubbliche;1;Trasferimenti correnti a Amministrazioni Centrali;2;Trasferimenti correnti a Ministero dell'Istruzione - Istituzioni scolastiche;27/11/2018
1100;1;0;100;100;STRAZZACAPPA ALICE; ;Borse di studio agli studenti meritevoli anno scolastico 2017/2018 - A.L. AC N. 246 DEL 26.11.2018;27/11/2018;3415;0;361;1;Spese correnti;4;Trasferimenti correnti;2;Trasferimenti correnti a Famiglie;5;Altri trasferimenti a famiglie;999;Altri trasferimenti a famiglie n.a.c.;27/11/2018
1101;1;0;400;400;ISTITUTO COMPRENSIVO LOZZO ATESTINO; ;Contributo per progetto di orientamento scolastico rivolto agli alunni iscritti al terzo anno della scuola secondaria di primo grado A.S. 2018/2019 - A.L. AC N. 247 DEL 26.11.2018;27/11/2018;3415;0;363;1;Spese correnti;4;Trasferimenti correnti;2;Trasferimenti correnti a Famiglie;5;Altri trasferimenti a famiglie;999;Altri trasferimenti a famiglie n.a.c.;27/11/2018
1102;1;0;8.019,87;8.019,87;S.E.S.A. SPA;Z11182D6F2;SALDO Fatt.n. 2001579  del 31/10/2018 Smaltimento rifiuti OTTOBRE 2018;27/11/2018;5780;0;41;1;Spese correnti;3;Acquisto di beni e servizi;2;Acquisto di servizi;15;Contratti di servizio pubblico;4;Contratti di servizio per la raccolta rifiuti;27/11/2018
1103;1;0;13.323,94;13.323,94;S.E.S.A. SPA;6848933E4B;SALDO Fatt.n. 2001578  del 31/10/2018 Raccolta rifiuti OTTOBRE 2018;27/11/2018;5780;0;18;1;Spese correnti;3;Acquisto di beni e servizi;2;Acquisto di servizi;15;Contratti di servizio pubblico;4;Contratti di servizio per la raccolta rifiuti;27/11/2018
1104;1;0;146,9;146,9;MARTINI LUCIANO SRL;Z70188CBBO;ACCONTO Fatt.n. 23/EL  del 20/11/2018 Lavori manutenzione strade eseguiti ottobre novembre 2018;27/11/2018;1302;0;289;1;Spese correnti;3;Acquisto di beni e servizi;2;Acquisto di servizi;9;Manutenzione ordinaria e riparazioni;8;Manutenzione ordinaria e riparazioni di beni immobili;27/11/2018
1105;1;0;6.888,35;6.888,35;MARTINI LUCIANO SRL;Z70188CBBO;SALDO Fatt.n. 23/EL  del 20/11/2018 Lavori manutenzione strade eseguiti ottobre novembre 2018;27/11/2018;1302;0;358;1;Spese correnti;3;Acquisto di beni e servizi;2;Acquisto di servizi;9;Manutenzione ordinaria e riparazioni;8;Manutenzione ordinaria e riparazioni di beni immobili;27/11/2018
1106;1;0;49,46;49,46;APOSTOLI SNC DI BOLZONELLA G.B.P. & C.; ;SALDO Fatt.n. 26/PA  del 19/11/2018 fornitura testi scolastici A.S. 2018/2020;27/11/2018;2950;0;183;1;Spese correnti;3;Acquisto di beni e servizi;1;Acquisto di beni;2;Altri beni di consumo;999;Altri beni e materiali di consumo n.a.c.;27/11/2018
1107;1;0;2.300,00;2.300,00;U.S. COLLI EUGANEI A.S.D.; ;Contributo economico anno 2018 - A.L. AC N. 243 DEL 20.11.2018;27/11/2018;6600;0;196;1;Spese correnti;4;Trasferimenti correnti;4;Trasferimenti correnti a Istituzioni Sociali Private;1;Trasferimenti correnti a Istituzioni Sociali Private;1;Trasferimenti correnti a Istituzioni Sociali Private;27/11/2018
1108;1;0;1.200,00;2.400,00;OMESSO NOMINATIVO NEL RISPETTO DELLA NORMATIVA SULLA PROTEZIONE DATI PERSONALI; ;Contributo Impegnativa di Cura Domiciliare (ICDm) secondo trimestre 2018 per Mion Giuseppe - a.l. AC N. 242 DEL 20.11.2018;27/11/2018;6710;0;351;1;Spese correnti;4;Trasferimenti correnti;2;Trasferimenti correnti a Famiglie;5;Altri trasferimenti a famiglie;999;Altri trasferimenti a famiglie n.a.c.;27/11/2018
1108;2;0;1.200,00;2.400,00;OMESSO NOMINATIVO NEL RISPETTO DELLA NORMATIVA SULLA PROTEZIONE DATI PERSONALI; ;Contributo Impegnativa di Cura Domiciliare (ICDm) secondo trimestre 2018 per Rizzi lorenzo - a.l. AC N. 242 DEL 20.11.2018;27/11/2018;6710;0;351;1;Spese correnti;4;Trasferimenti correnti;2;Trasferimenti correnti a Famiglie;5;Altri trasferimenti a famiglie;999;Altri trasferimenti a famiglie n.a.c.;27/11/2018
1109;1;0;480;5.280,00;OMESSO NOMINATIVO NEL RISPETTO DELLA NORMATIVA SULLA PROTEZIONE DATI PERSONALI; ;Contributo Impegnativa di Cura Domiciliare  (ICD b)  primo semestre 2018 per Griggio Natale - A.L. AC N. 241 DEL 20.11.2018;27/11/2018;6710;0;352;1;Spese correnti;4;Trasferimenti correnti;2;Trasferimenti correnti a Famiglie;5;Altri trasferimenti a famiglie;999;Altri trasferimenti a famiglie n.a.c.;27/11/2018
1109;2;0;720;5.280,00;OMESSO NOMINATIVO NEL RISPETTO DELLA NORMATIVA SULLA PROTEZIONE DATI PERSONALI; ;Contributo Impegnativa di Cura Domiciliare  (ICD b)  primo semestre 2018 per Meneghini Andreina - A.L. AC N. 241 DEL 20.11.2018;27/11/2018;6710;0;352;1;Spese correnti;4;Trasferimenti correnti;2;Trasferimenti correnti a Famiglie;5;Altri trasferimenti a famiglie;999;Altri trasferimenti a famiglie n.a.c.;27/11/2018
1109;3;0;240;5.280,00;OMESSO NOMINATIVO NEL RISPETTO DELLA NORMATIVA SULLA PROTEZIONE DATI PERSONALI; ;Contributo Impegnativa di Cura Domiciliare  (ICD b)  primo semestre 2018 per Sow Hamady - A.L. AC N. 241 DEL 20.11.2018;27/11/2018;6710;0;352;1;Spese correnti;4;Trasferimenti correnti;2;Trasferimenti correnti a Famiglie;5;Altri trasferimenti a famiglie;999;Altri trasferimenti a famiglie n.a.c.;27/11/2018
1109;4;0;360;5.280,00;OMESSO NOMINATIVO NEL RISPETTO DELLA NORMATIVA SULLA PROTEZIONE DATI PERSONALI; ;Contributo Impegnativa di Cura Domiciliare  (ICD b)  primo semestre 2018 per Mazzetto Antonietta - A.L. AC N. 241 DEL 20.11.2018;27/11/2018;6710;0;352;1;Spese correnti;4;Trasferimenti correnti;2;Trasferimenti correnti a Famiglie;5;Altri trasferimenti a famiglie;999;Altri trasferimenti a famiglie n.a.c.;27/11/2018
1109;5;0;240;5.280,00;OMESSO NOMINATIVO NEL RISPETTO DELLA NORMATIVA SULLA PROTEZIONE DATI PERSONALI; ;Contributo Impegnativa di Cura Domiciliare  (ICD b)  primo semestre 2018 per Meneghini Antonio - A.L. AC N. 241 DEL 20.11.2018;27/11/2018;6710;0;352;1;Spese correnti;4;Trasferimenti correnti;2;Trasferimenti correnti a Famiglie;5;Altri trasferimenti a famiglie;999;Altri trasferimenti a famiglie n.a.c.;27/11/2018
1109;6;0;720;5.280,00;OMESSO NOMINATIVO NEL RISPETTO DELLA NORMATIVA SULLA PROTEZIONE DATI PERSONALI; ;Contributo Impegnativa di Cura Domiciliare  (ICD b)  primo semestre 2018 per Meneghini Eufrasia  - A.L. AC N. 241 DEL 20.11.2018;27/11/2018;6710;0;352;1;Spese correnti;4;Trasferimenti correnti;2;Trasferimenti correnti a Famiglie;5;Altri trasferimenti a famiglie;999;Altri trasferimenti a famiglie n.a.c.;27/11/2018
1109;7;0;360;5.280,00;OMESSO NOMINATIVO NEL RISPETTO DELLA NORMATIVA SULLA PROTEZIONE DATI PERSONALI; ;Contributo Impegnativa di Cura Domiciliare  (ICD b)  primo semestre 2018 per Santimaria Anna - A.L. AC N. 241 DEL 20.11.2018;27/11/2018;6710;0;352;1;Spese correnti;4;Trasferimenti correnti;2;Trasferimenti correnti a Famiglie;5;Altri trasferimenti a famiglie;999;Altri trasferimenti a famiglie n.a.c.;27/11/2018
1109;8;0;720;5.280,00;OMESSO NOMINATIVO NEL RISPETTO DELLA NORMATIVA SULLA PROTEZIONE DATI PERSONALI; ;Contributo Impegnativa di Cura Domiciliare  (ICD b)  primo semestre 2018 per Sarego Lina - A.L. AC N. 241 DEL 20.11.2018;27/11/2018;6710;0;352;1;Spese correnti;4;Trasferimenti correnti;2;Trasferimenti correnti a Famiglie;5;Altri trasferimenti a famiglie;999;Altri trasferimenti a famiglie n.a.c.;27/11/2018
1109;9;0;240;5.280,00;OMESSO NOMINATIVO NEL RISPETTO DELLA NORMATIVA SULLA PROTEZIONE DATI PERSONALI; ;Contributo Impegnativa di Cura Domiciliare  (ICD b)  primo semestre 2018 per Pagliarin Emilia - A.L. AC N. 241 DEL 20.11.2018;27/11/2018;6710;0;352;1;Spese correnti;4;Trasferimenti correnti;2;Trasferimenti correnti a Famiglie;5;Altri trasferimenti a famiglie;999;Altri trasferimenti a famiglie n.a.c.;27/11/2018
1109;10;0;720;5.280,00;OMESSO NOMINATIVO NEL RISPETTO DELLA NORMATIVA SULLA PROTEZIONE DATI PERSONALI; ;Contributo Impegnativa di Cura Domiciliare  (ICD b)  primo semestre 2018 per Mercurio Epifania - A.L. AC N. 241 DEL 20.11.2018;27/11/2018;6710;0;352;1;Spese correnti;4;Trasferimenti correnti;2;Trasferimenti correnti a Famiglie;5;Altri trasferimenti a famiglie;999;Altri trasferimenti a famiglie n.a.c.;27/11/2018
1109;11;0;240;5.280,00;OMESSO NOMINATIVO NEL RISPETTO DELLA NORMATIVA SULLA PROTEZIONE DATI PERSONALI; ;Contributo Impegnativa di Cura Domiciliare  (ICD b)  primo semestre 2018 per veronese Antonio - A.L. AC N. 241 DEL 20.11.2018;27/11/2018;6710;0;352;1;Spese correnti;4;Trasferimenti correnti;2;Trasferimenti correnti a Famiglie;5;Altri trasferimenti a famiglie;999;Altri trasferimenti a famiglie n.a.c.;27/11/2018
1109;12;0;240;5.280,00;OMESSO NOMINATIVO NEL RISPETTO DELLA NORMATIVA SULLA PROTEZIONE DATI PERSONALI; ;Contributo Impegnativa di Cura Domiciliare  (ICD b)  primo semestre 2018 per Ongaro Gina  - A.L. AC N. 241 DEL 20.11.2018;27/11/2018;6710;0;352;1;Spese correnti;4;Trasferimenti correnti;2;Trasferimenti correnti a Famiglie;5;Altri trasferimenti a famiglie;999;Altri trasferimenti a famiglie n.a.c.;27/11/2018
1111;1;0;887,38;887,38;TREVISAN VANESSA; ;Indennita di carica Sindaco novembre  2018;03/12/2018;10;0;24;1;Spese correnti;3;Acquisto di beni e servizi;2;Acquisto di servizi;1;Organi e incarichi istituzionali dell'amministrazione;1;Organi istituzionali dell'amministrazione - Indennità;03/12/2018
1112;1;0;177,48;177,48;CALAON SIMONE; ;Indennita di carica Vice-Sindaco novembre  2018;03/12/2018;10;0;25;1;Spese correnti;3;Acquisto di beni e servizi;2;Acquisto di servizi;1;Organi e incarichi istituzionali dell'amministrazione;1;Organi istituzionali dell'amministrazione - Indennità;03/12/2018
1113;1;0;133,11;133,11;LAZZARETTO ROBERTA; ;Indennita di carica Assessore novembre 2018;03/12/2018;10;0;27;1;Spese correnti;3;Acquisto di beni e servizi;2;Acquisto di servizi;1;Organi e incarichi istituzionali dell'amministrazione;1;Organi istituzionali dell'amministrazione - Indennità;03/12/2018
1114;1;0;87,44;87,44;LAZZARETTO ROBERTA; ;Rimborso per spese di viaggio amministratori comunali novembre 2018 - A.L. AC N. 253 DEL 03.12.2018;03/12/2018;230;0;33;1;Spese correnti;3;Acquisto di beni e servizi;2;Acquisto di servizi;1;Organi e incarichi istituzionali dell'amministrazione;2;Organi istituzionali dell'amministrazione - Rimborsi;03/12/2018
1115;1;0;266,21;266,21;SANTIMARIA ANDREA; ;Indennita di carica Assessore NOVEMBRE 2018;03/12/2018;10;0;26;1;Spese correnti;3;Acquisto di beni e servizi;2;Acquisto di servizi;1;Organi e incarichi istituzionali dell'amministrazione;1;Organi istituzionali dell'amministrazione - Indennità;03/12/2018
1116;1;0;20,5;266,21;Agenzia delle Entrate - Riscossione; ;Riversamento somma pignorata con atto di pignoramento fascicolo n. 77/2018/000045533 mese di agosto 2018 - A.L. AC  N. 173 DEL 30.08.2018;03/12/2018;10;0;28;1;Spese correnti;3;Acquisto di beni e servizi;2;Acquisto di servizi;1;Organi e incarichi istituzionali dell'amministrazione;1;Organi istituzionali dell'amministrazione - Indennità;03/12/2018
1116;2;0;245,71;266,21;ZAVATTIERO AGOSTINO; ;Indennita di carica Assessore NOVEMBRE 2018;03/12/2018;10;0;28;1;Spese correnti;3;Acquisto di beni e servizi;2;Acquisto di servizi;1;Organi e incarichi istituzionali dell'amministrazione;1;Organi istituzionali dell'amministrazione - Indennità;03/12/2018
1119;1;0;118,68;887,52;PILO SNC;Z641F2729B;SALDO Fatt.n. 7/E  del 30/09/2018 Servizio mensa dipendenti mese di luglio 2018 (acconto);04/12/2018;9375;0;206;1;Spese correnti;3;Acquisto di beni e servizi;2;Acquisto di servizi;99;Altri servizi;999;Altri servizi diversi n.a.c.;04/12/2018
1119;2;0;159,96;887,52;PILO SNC;Z641F2729B;SALDO Fatt.n. 10/E  del 31/10/2018 Saldo fornitura pasti ai dipendenti mese di luglio 2018;04/12/2018;9375;0;206;1;Spese correnti;3;Acquisto di beni e servizi;2;Acquisto di servizi;99;Altri servizi;999;Altri servizi diversi n.a.c.;04/12/2018
1119;3;0;190,92;887,52;PILO SNC;Z641F2729B;SALDO Fatt.n. 8/E  del 30/09/2018 Servizio mensa dipendenti mese di agosto 2018;04/12/2018;9375;0;206;1;Spese correnti;3;Acquisto di beni e servizi;2;Acquisto di servizi;99;Altri servizi;999;Altri servizi diversi n.a.c.;04/12/2018
1119;4;0;196,08;887,52;PILO SNC;Z641F2729B;SALDO Fatt.n. 9/E  del 30/09/2018 Servizio mensa dipendenti mese di settembre 2018;04/12/2018;9375;0;206;1;Spese correnti;3;Acquisto di beni e servizi;2;Acquisto di servizi;99;Altri servizi;999;Altri servizi diversi n.a.c.;04/12/2018
1119;5;0;221,88;887,52;PILO SNC;Z641F2729B;SALDO Fatt.n. 11/E  del 31/10/2018 Fornitura pasti ai dipendenti mese di ottobre 2018;04/12/2018;9375;0;206;1;Spese correnti;3;Acquisto di beni e servizi;2;Acquisto di servizi;99;Altri servizi;999;Altri servizi diversi n.a.c.;04/12/2018
1120;1;0;789,13;789,13;MINISTERO DELL'INTERNO; ;Comune di Vo' - corrispettivo per il rilascio di n. 47 carte d'identita' elettroniche periodo 01.10.2018 - 30.11.2018 - A.L. AC N. 251 DEL 30.11.2018;04/12/2018;1100;0;220;1;Spese correnti;4;Trasferimenti correnti;1;Trasferimenti correnti a Amministrazioni Pubbliche;1;Trasferimenti correnti a Amministrazioni Centrali;1;Trasferimenti correnti a Ministeri;04/12/2018
1121;1;0;160,32;160,32;LIBRERIA GREGORIANA ESTENSE; ;SALDO Fatt.n. 35/PA  del 26/11/2018 FORNITURA LIBRI ALUNNI SCUOLE ELEMENTARI a.s. 2018/2019;04/12/2018;2950;0;183;1;Spese correnti;3;Acquisto di beni e servizi;1;Acquisto di beni;2;Altri beni di consumo;999;Altri beni e materiali di consumo n.a.c.;04/12/2018
1122;1;0;8.976,76;8.976,76;Schiavo Michele;Z241F018FF;ACCONTO Fatt.n. 000005-2018-PA1  del 03/12/2018 Saldo competenze progetto  riqualificazione energetica polo scolastico e perizia di variante;04/12/2018;10390;0;205;2;Spese in conto capitale;2;Investimenti fissi lordi e acquisto di terreni;1;Beni materiali;9;Beni immobili;3;Fabbricati ad uso scolastico;04/12/2018
1123;1;0;1.903,20;1.903,20;Schiavo Michele;Z241F018FF;SALDO Fatt.n. 000005-2018-PA1  del 03/12/2018 Saldo competenze progetto  riqualificazione energetica polo scolastico e perizia di variante;04/12/2018;10390;0;387;2;Spese in conto capitale;2;Investimenti fissi lordi e acquisto di terreni;1;Beni materiali;9;Beni immobili;3;Fabbricati ad uso scolastico;04/12/2018
1124;1;0;3.172,00;3.172,00;POLAB S.R.L.;ZC11B26AB4;SALDO Fatt.n. 94  del 30/11/2018 Saldo anno 2018 competenze per piano comunale telefonia mobile;04/12/2018;790;0;321;1;Spese correnti;3;Acquisto di beni e servizi;2;Acquisto di servizi;99;Altri servizi;999;Altri servizi diversi n.a.c.;04/12/2018
1125;1;0;1.024,80;1.024,80;Partnerpatch di Giuseppe Satriano;Z0225C22B3;SALDO Fatt.n. 235/PA  del 20/11/2018 Fornitura n. 150 sacchi di asfalto a freddo;04/12/2018;1300;0;356;1;Spese correnti;3;Acquisto di beni e servizi;1;Acquisto di beni;2;Altri beni di consumo;999;Altri beni e materiali di consumo n.a.c.;04/12/2018
1126;1;0;2.132,56;2.132,56;MIRANDOLA IMPIANTI SRL;Z5225D2393;SALDO Fatt.n. 21/PA  del 28/11/2018 Riparazione impianto di riscaldamento scuola primaria e centro civico;04/12/2018;1302;0;357;1;Spese correnti;3;Acquisto di beni e servizi;2;Acquisto di servizi;9;Manutenzione ordinaria e riparazioni;8;Manutenzione ordinaria e riparazioni di beni immobili;04/12/2018
1127;1;0;2.367,36;2.367,36;TONIOLO ADRIANO; ;Acquisizione bonaria del terreno ubicato a Vo' (Foglio 6, mappale 44 - parte) per realizzazione pista ciclabile Monti Berici/Colli Euganei - acconto - a.l. UTC N. 177 DEL 03.12.2018;04/12/2018;11830;0;255;2;Spese in conto capitale;2;Investimenti fissi lordi e acquisto di terreni;1;Beni materiali;9;Beni immobili;12;Infrastrutture stradali;04/12/2018
1129;1;0;1.000,00;3.500,00;ASD VELOCE CLUB VO' c/o presidente TREVISAN ROMEO; ;Contributo economico anno 2018 -A.L. AC N. 248 DEL 26.11.2018;04/12/2018;6600;0;366;1;Spese correnti;4;Trasferimenti correnti;4;Trasferimenti correnti a Istituzioni Sociali Private;1;Trasferimenti correnti a Istituzioni Sociali Private;1;Trasferimenti correnti a Istituzioni Sociali Private;04/12/2018
1129;2;0;2.500,00;3.500,00;SCUOLA CICLISMO VO' c/o LOVO GRAZIANO; ;Contributo economico anno 2018 -A.L. AC N. 248 DEL 26.11.2018;04/12/2018;6600;0;366;1;Spese correnti;4;Trasferimenti correnti;4;Trasferimenti correnti a Istituzioni Sociali Private;1;Trasferimenti correnti a Istituzioni Sociali Private;1;Trasferimenti correnti a Istituzioni Sociali Private;04/12/2018
1130;1;0;150;150;ASS. COMBATTENTI E REDUCI; ;Contributo economico anno 2018 - a.l. ac n. 248 del 26.11.2018;04/12/2018;7200;0;367;1;Spese correnti;4;Trasferimenti correnti;4;Trasferimenti correnti a Istituzioni Sociali Private;1;Trasferimenti correnti a Istituzioni Sociali Private;1;Trasferimenti correnti a Istituzioni Sociali Private;04/12/2018
1131;1;0;562,36;562,36;Tabaccheria n. 2 di Terzo Fernanda; ;SALDO Fatt.n. 02  del 08/11/2018 FORNITURA LIBRI DI TESTO ALUNNI SCUOLE ELEMENTARI AS 2018/2019;04/12/2018;2950;0;183;1;Spese correnti;3;Acquisto di beni e servizi;1;Acquisto di beni;2;Altri beni di consumo;999;Altri beni e materiali di consumo n.a.c.;04/12/2018
1134;1;0;3,5;3,5;Intesa Sanpaolo S.p.A.; ;Quota interessi finanziamento n. 00/0052147241 rata 31.12.2018;05/12/2018;1309;0;209;1;Spese correnti;7;Interessi passivi;5;Interessi su Mutui e altri finanziamenti a medio lungo termine;4;Interessi passivi su finanziamenti a medio lungo termine a Imprese;999;Interessi passivi a altre imprese su finanziamenti a medio lungo termine;05/12/2018
1135;1;0;242,52;242,52;PILO SNC;Z641F2729B;SALDO Fatt.n. 12/E  del 30/11/2018 Servizio mensa dipendenti mese di novembre 2018;07/12/2018;9375;0;206;1;Spese correnti;3;Acquisto di beni e servizi;2;Acquisto di servizi;99;Altri servizi;999;Altri servizi diversi n.a.c.;07/12/2018
1136;1;0;154,21;154,21;GRAFICHE E. GASPARI S.R.L.;ZB524603B7;SALDO Fatt.n. 16885  del 31/10/2018 Fornitura fogli di stato civile per computer;07/12/2018;910;0;232;1;Spese correnti;3;Acquisto di beni e servizi;1;Acquisto di beni;2;Altri beni di consumo;999;Altri beni e materiali di consumo n.a.c.;07/12/2018
1137;1;0;260,8;260,8;Cartoleria Giulia di Fortuna Maria; ;SALDO Fatt.n. 02  del 13/11/2018 Fornitura libri di testo ad alunni scuole elementari;07/12/2018;2950;0;183;1;Spese correnti;3;Acquisto di beni e servizi;1;Acquisto di beni;2;Altri beni di consumo;999;Altri beni e materiali di consumo n.a.c.;07/12/2018
1138;1;0;30,67;30,67;Libreria Palladio di Omenetto Martina; ;SALDO Fatt.n. 6/PA  del 05/12/2018 Fornitura cedole librarie a.s. 2018-2020;07/12/2018;2950;0;183;1;Spese correnti;3;Acquisto di beni e servizi;1;Acquisto di beni;2;Altri beni di consumo;999;Altri beni e materiali di consumo n.a.c.;07/12/2018
1139;1;0;150;150;OMESSO NOMINATIVO NEL RISPETTO DELLA NORMATIVA SULLA PROTEZIONE DATI PERSONALI; ;Erogazione contributi economici DICEMBRE 2018 - a.l. ac n. 87 del 24.04.2018;07/12/2018;6935;0;131;1;Spese correnti;4;Trasferimenti correnti;2;Trasferimenti correnti a Famiglie;5;Altri trasferimenti a famiglie;999;Altri trasferimenti a famiglie n.a.c.;07/12/2018
1140;1;0;854;854;GAMMA COSTRUZIONI DI AMBROSI SANDRO & C.;ZA42185DD4;SALDO Fatt.n. 39  del 06/12/2018 Pulizia grondaie edifici pubblici  anno 2018;07/12/2018;1302;0;418;1;Spese correnti;3;Acquisto di beni e servizi;2;Acquisto di servizi;9;Manutenzione ordinaria e riparazioni;8;Manutenzione ordinaria e riparazioni di beni immobili;07/12/2018
1141;1;0;101,26;101,26;ELETTRIKA S.r.l.;Z6324D9C6F;SALDO Fatt.n. 18/PA  del 30/11/2018 Fornitura materiale elettrico per lavori in economia novembre 2018;07/12/2018;1300;0;286;1;Spese correnti;3;Acquisto di beni e servizi;1;Acquisto di beni;2;Altri beni di consumo;999;Altri beni e materiali di consumo n.a.c.;07/12/2018
1142;1;0;1.045,00;1.045,00;ZEFIRO SRL;Z3D1A45638;ACCONTO Fatt.n. 48/PA  del 30/11/2018 Servizio di pulizia edifici comunali MESE di NOVEMBRE 2018;07/12/2018;475;0;301;1;Spese correnti;3;Acquisto di beni e servizi;2;Acquisto di servizi;99;Altri servizi;999;Altri servizi diversi n.a.c.;07/12/2018
1143;1;0;174,85;174,85;ZEFIRO SRL;Z3D1A45638;ACCONTO Fatt.n. 48/PA  del 30/11/2018 Servizio di pulizia edifici comunali MESE di NOVEMBRE 2018;07/12/2018;1400;0;304;1;Spese correnti;3;Acquisto di beni e servizi;2;Acquisto di servizi;9;Manutenzione ordinaria e riparazioni;8;Manutenzione ordinaria e riparazioni di beni immobili;07/12/2018
1144;1;0;294,75;294,75;ZEFIRO SRL;Z3D1A45638;ACCONTO Fatt.n. 48/PA  del 30/11/2018 Servizio di pulizia edifici comunali MESE di NOVEMBRE 2018;07/12/2018;37601;0;303;1;Spese correnti;3;Acquisto di beni e servizi;2;Acquisto di servizi;99;Altri servizi;999;Altri servizi diversi n.a.c.;07/12/2018
1145;1;0;262,18;262,18;ZEFIRO SRL;Z3D1A45638;SALDO Fatt.n. 48/PA  del 30/11/2018 Servizio di pulizia edifici comunali MESE di NOVEMBRE 2018;07/12/2018;2973;0;302;1;Spese correnti;3;Acquisto di beni e servizi;2;Acquisto di servizi;99;Altri servizi;999;Altri servizi diversi n.a.c.;07/12/2018
1146;1;0;2.270,58;2.270,58;Artigiana s.r.l.;73000553F5;"ACCONTO Fatt.n. 169  del 03/12/2018 Saldo lavori di  miglioramento statico Polo scolastico ""A Pilonato""";07/12/2018;10390;0;387;2;Spese in conto capitale;2;Investimenti fissi lordi e acquisto di terreni;1;Beni materiali;9;Beni immobili;3;Fabbricati ad uso scolastico;07/12/2018
1147;1;0;7.276,58;7.276,58;Artigiana s.r.l.;73000553F5;"SALDO Fatt.n. 169  del 03/12/2018 Saldo lavori di  miglioramento statico Polo scolastico ""A Pilonato""";07/12/2018;10390;0;387;2;Spese in conto capitale;2;Investimenti fissi lordi e acquisto di terreni;1;Beni materiali;9;Beni immobili;3;Fabbricati ad uso scolastico;07/12/2018
1148;1;0;43.260,62;43.260,62;FERALL S.R.L.;7300011FA2;ACCONTO Fatt.n. 6  del 03/12/2018 Saldo lavori di sostituzione serramenti  nel Polo scolastico di Vo';07/12/2018;10390;0;387;2;Spese in conto capitale;2;Investimenti fissi lordi e acquisto di terreni;1;Beni materiali;9;Beni immobili;3;Fabbricati ad uso scolastico;07/12/2018
1149;1;0;2.134,00;2.134,00;FERALL S.R.L.;7300011FA2;SALDO Fatt.n. 6  del 03/12/2018 Saldo lavori di sostituzione serramenti  nel Polo scolastico di Vo';07/12/2018;10390;0;387;2;Spese in conto capitale;2;Investimenti fissi lordi e acquisto di terreni;1;Beni materiali;9;Beni immobili;3;Fabbricati ad uso scolastico;07/12/2018
1150;1;0;28,47;311,18;CATTIODORO ALESSANDRO; ;Gettoni presenza per Commissari Edilizi e Paesaggisti anno 2017 - A.L. UTC N. 183 DEL 05.12.2018;07/12/2018;4285;0;420;1;Spese correnti;3;Acquisto di beni e servizi;2;Acquisto di servizi;10;Consulenze;2;Esperti per commissioni, comitati e consigli;07/12/2018
1150;2;0;28,8;311,18;CATTIODORO ALESSANDRO; ;Rimborso spese chilometriche per Commissari Edilizi e Paesaggisti anno 2017 - A.L. UTC N. 183 DEL 05.12.2018;07/12/2018;4285;0;420;1;Spese correnti;3;Acquisto di beni e servizi;2;Acquisto di servizi;10;Consulenze;2;Esperti per commissioni, comitati e consigli;07/12/2018
1150;3;0;28,47;311,18;CORA' SILVANO; ;Gettoni presenza per Commissari Edilizi e Paesaggisti anno 2017 - A.L. UTC N. 183 DEL 05.12.2018;07/12/2018;4285;0;420;1;Spese correnti;3;Acquisto di beni e servizi;2;Acquisto di servizi;10;Consulenze;2;Esperti per commissioni, comitati e consigli;07/12/2018
1150;4;0;28,8;311,18;CORA' SILVANO; ;Rimborso spese chilometriche per Commissari Edilizi e Paesaggisti anno 2017 - A.L. UTC N. 183 DEL 05.12.2018;07/12/2018;4285;0;420;1;Spese correnti;3;Acquisto di beni e servizi;2;Acquisto di servizi;10;Consulenze;2;Esperti per commissioni, comitati e consigli;07/12/2018
1150;5;0;19,2;311,18;RUFFIN LUCA; ;Rimborso spese chilometriche per Commissari Edilizi e Paesaggisti anno 2017 - A.L. UTC N. 183 DEL 05.12.2018;07/12/2018;4285;0;420;1;Spese correnti;3;Acquisto di beni e servizi;2;Acquisto di servizi;10;Consulenze;2;Esperti per commissioni, comitati e consigli;07/12/2018
1150;6;0;56,94;311,18;RUFFIN LUCA; ;Gettoni presenza  per Commissari Edilizi e Paesaggisti anno 2017 - A.L. UTC N. 183 DEL 05.12.2018;07/12/2018;4285;0;420;1;Spese correnti;3;Acquisto di beni e servizi;2;Acquisto di servizi;10;Consulenze;2;Esperti per commissioni, comitati e consigli;07/12/2018
1150;7;0;25,6;311,18;ZAMPIERI PAOLO; ;Rimborso spese chilometriche per Commissari Edilizi e Paesaggisti anno 2017 - A.L. UTC N. 183 DEL 05.12.2018;07/12/2018;4285;0;420;1;Spese correnti;3;Acquisto di beni e servizi;2;Acquisto di servizi;10;Consulenze;2;Esperti per commissioni, comitati e consigli;07/12/2018
1150;8;0;47,45;311,18;ZAMPIERI PAOLO; ;Gettoni presenza  per Commissari Edilizi e Paesaggisti anno 2017 - A.L. UTC N. 183 DEL 05.12.2018;07/12/2018;4285;0;420;1;Spese correnti;3;Acquisto di beni e servizi;2;Acquisto di servizi;10;Consulenze;2;Esperti per commissioni, comitati e consigli;07/12/2018
1150;9;0;47,45;311,18;ZERBETTO MICHELA; ;Gettoni presenza  per Commissari Edilizi e Paesaggisti anno 2017 - A.L. UTC N. 183 DEL 05.12.2018;07/12/2018;4285;0;420;1;Spese correnti;3;Acquisto di beni e servizi;2;Acquisto di servizi;10;Consulenze;2;Esperti per commissioni, comitati e consigli;07/12/2018
1151;1;0;9,49;173,93;CATTIODORO ALESSANDRO; ;Gettoni presenza  per componenti Commissione Edilizia e Paesaggio anno 2018 - A.L. UTC N. 183 DEL 05.12.2018;07/12/2018;4285;0;371;1;Spese correnti;3;Acquisto di beni e servizi;2;Acquisto di servizi;10;Consulenze;2;Esperti per commissioni, comitati e consigli;07/12/2018
1151;2;0;9,6;173,93;CATTIODORO ALESSANDRO; ;Rimborso spese chilometriche per componenti Commissione Edilizia e Paesaggio anno 2018 - A.L. UTC N. 183 DEL 05.12.2018;07/12/2018;4285;0;371;1;Spese correnti;3;Acquisto di beni e servizi;2;Acquisto di servizi;10;Consulenze;2;Esperti per commissioni, comitati e consigli;07/12/2018
1151;3;0;9,49;173,93;CORA' SILVANO; ;Gettoni presenza  per componenti Commissione Edilizia e Paesaggio anno 2018 - A.L. UTC N. 183 DEL 05.12.2018;07/12/2018;4285;0;371;1;Spese correnti;3;Acquisto di beni e servizi;2;Acquisto di servizi;10;Consulenze;2;Esperti per commissioni, comitati e consigli;07/12/2018
1151;4;0;9,6;173,93;CORA' SILVANO; ;Rimborso spese chilometriche per componenti Commissione Edilizia e Paesaggio anno 2018 - A.L. UTC N. 183 DEL 05.12.2018;07/12/2018;4285;0;371;1;Spese correnti;3;Acquisto di beni e servizi;2;Acquisto di servizi;10;Consulenze;2;Esperti per commissioni, comitati e consigli;07/12/2018
1151;5;0;16;173,93;RUFFIN LUCA; ;Rimborso spese chilometriche per componenti Commissione Edilizia e Paesaggio anno 2018 - A.L. UTC N. 183 DEL 05.12.2018;07/12/2018;4285;0;371;1;Spese correnti;3;Acquisto di beni e servizi;2;Acquisto di servizi;10;Consulenze;2;Esperti per commissioni, comitati e consigli;07/12/2018
1151;6;0;47,45;173,93;RUFFIN LUCA; ;Gettoni presenza  per componenti Commissione Edilizia e Paesaggio anno 2018 - A.L. UTC N. 183 DEL 05.12.2018;07/12/2018;4285;0;371;1;Spese correnti;3;Acquisto di beni e servizi;2;Acquisto di servizi;10;Consulenze;2;Esperti per commissioni, comitati e consigli;07/12/2018
1151;7;0;15,36;173,93;ZAMPIERI PAOLO; ;Rimborso spese chilometriche per componenti Commissione Edilizia e Paesaggio anno 2018 - A.L. UTC N. 183 DEL 05.12.2018;07/12/2018;4285;0;371;1;Spese correnti;3;Acquisto di beni e servizi;2;Acquisto di servizi;10;Consulenze;2;Esperti per commissioni, comitati e consigli;07/12/2018
1151;8;0;28,47;173,93;ZAMPIERI PAOLO; ;Gettoni presenza per componenti Commissione Edilizia e Paesaggio anno 2018 - A.L. UTC N. 183 DEL 05.12.2018;07/12/2018;4285;0;371;1;Spese correnti;3;Acquisto di beni e servizi;2;Acquisto di servizi;10;Consulenze;2;Esperti per commissioni, comitati e consigli;07/12/2018
1151;9;0;28,47;173,93;ZERBETTO MICHELA; ;Gettoni presenza per componenti Commissione Edilizia e Paesaggio anno 2018 - A.L. UTC N. 183 DEL 05.12.2018;07/12/2018;4285;0;371;1;Spese correnti;3;Acquisto di beni e servizi;2;Acquisto di servizi;10;Consulenze;2;Esperti per commissioni, comitati e consigli;07/12/2018
1154;1;0;1.000,00;1.000,00;OMESSO NOMINATIVO NEL RISPETTO DELLA NORMATIVA SULLA PROTEZIONE DATI PERSONALI; ;Contributo Regionale per il sostegno delle famiglie monoparentali - DGR 1357/2017 - A.L. AC N. 258 DEL 07.12.2018;07/12/2018;6780;0;375;1;Spese correnti;4;Trasferimenti correnti;2;Trasferimenti correnti a Famiglie;5;Altri trasferimenti a famiglie;999;Altri trasferimenti a famiglie n.a.c.;07/12/2018
1155;1;0;887,38;887,38;TREVISAN VANESSA; ;Indennita di carica Sindaco dicembre 2018;07/12/2018;10;0;24;1;Spese correnti;3;Acquisto di beni e servizi;2;Acquisto di servizi;1;Organi e incarichi istituzionali dell'amministrazione;1;Organi istituzionali dell'amministrazione - Indennità;07/12/2018
1156;1;0;177,48;177,48;CALAON SIMONE; ;Indennita di carica Vice-Sindaco dicembre 2018;07/12/2018;10;0;25;1;Spese correnti;3;Acquisto di beni e servizi;2;Acquisto di servizi;1;Organi e incarichi istituzionali dell'amministrazione;1;Organi istituzionali dell'amministrazione - Indennità;07/12/2018
1157;1;0;133,11;133,11;LAZZARETTO ROBERTA; ;Indennita di carica Assessore dicembre 2018;07/12/2018;10;0;27;1;Spese correnti;3;Acquisto di beni e servizi;2;Acquisto di servizi;1;Organi e incarichi istituzionali dell'amministrazione;1;Organi istituzionali dell'amministrazione - Indennità;07/12/2018
1158;1;0;266,21;266,21;SANTIMARIA ANDREA; ;Indennita di carica Assessore anno 2018;07/12/2018;10;0;26;1;Spese correnti;3;Acquisto di beni e servizi;2;Acquisto di servizi;1;Organi e incarichi istituzionali dell'amministrazione;1;Organi istituzionali dell'amministrazione - Indennità;07/12/2018
1159;1;0;20,5;266,21;Agenzia delle Entrate - Riscossione; ;Riversamento somma pignorata con atto di pignoramento fascicolo n. 77/2018/000045533 mese di dicembre 2018 - A.L. AC N. 173 DEL 30.08.2018;07/12/2018;10;0;28;1;Spese correnti;3;Acquisto di beni e servizi;2;Acquisto di servizi;1;Organi e incarichi istituzionali dell'amministrazione;1;Organi istituzionali dell'amministrazione - Indennità;07/12/2018
1159;2;0;245,71;266,21;ZAVATTIERO AGOSTINO; ;Indennita di carica Assessore dicembre 2018;07/12/2018;10;0;28;1;Spese correnti;3;Acquisto di beni e servizi;2;Acquisto di servizi;1;Organi e incarichi istituzionali dell'amministrazione;1;Organi istituzionali dell'amministrazione - Indennità;07/12/2018
1162;1;0;95,12;95,12;E.ON Energia S.p.a.;Z7113FE6B2;SALDO Fatt.n. 40008570  del 03/12/2018 Fornitura gas naturale utenza Polo Scolastico periodo dal 26.09.2018 al 29.10.2018;11/12/2018;28001;0;61;1;Spese correnti;3;Acquisto di beni e servizi;2;Acquisto di servizi;5;Utenze e canoni;6;Gas;11/12/2018
1163;1;0;89,08;89,08;E.ON Energia S.p.a.;Z7113FE6B2;Saldo fatt. 40008571 del 03/12/2018 Fornitura gas naturale utenza immobile Piazzetta Martiri periodo dal 26.09.2018 al 29.10.2018;11/12/2018;1405;0;59;1;Spese correnti;3;Acquisto di beni e servizi;2;Acquisto di servizi;5;Utenze e canoni;6;Gas;11/12/2018
1164;1;0;74,62;208,7;E.ON Energia S.p.a.;Z7113FE6B2;SALDO Fatt.n. 40008095  del 03/12/2018 Fornitura gas naturale utenza (contatore SMGR034118441730) periodo dal 25.09.2018 al 31.10.2018;11/12/2018;4751;0;60;1;Spese correnti;3;Acquisto di beni e servizi;2;Acquisto di servizi;5;Utenze e canoni;6;Gas;11/12/2018
1164;2;0;134,08;208,7;E.ON Energia S.p.a.;Z7113FE6B2;SALDO Fatt.n. 40008569  del 03/12/2018 Fornitura gas naturale utenza Sede Municipale (contatore MTX0000045006563) periodo dal 26.09.2018 al 29.10.2018;11/12/2018;4751;0;60;1;Spese correnti;3;Acquisto di beni e servizi;2;Acquisto di servizi;5;Utenze e canoni;6;Gas;11/12/2018
1165;1;0;196,48;196,48;E.ON Energia S.p.a.; ;SALDO Fatt.n. 40008595  del 03/12/2018 Fornitura energia elettrica utenza Villa Venier periodo dal 25.08.2018 al 31.10.2018;11/12/2018;1312;0;64;1;Spese correnti;3;Acquisto di beni e servizi;2;Acquisto di servizi;5;Utenze e canoni;6;Gas;11/12/2018
1166;1;0;750;750;"CASA DI RIPOSO ""A. SIMIONATI"""; ;SALDO Fatt.n. 150/E  del 30/11/2018 Quota retta ospite R.R. mese di novembre 2018;12/12/2018;6875;0;15;1;Spese correnti;3;Acquisto di beni e servizi;2;Acquisto di servizi;99;Altri servizi;999;Altri servizi diversi n.a.c.;12/12/2018
1167;1;0;1.903,20;1.903,20;GONZATO BRUNO;ZDB1F0221F;SALDO Fatt.n. 5/PA  del 11/12/2018 Competenze per collaudo statico lavori di riqualificazione statica polo scolastico;12/12/2018;10390;0;204;2;Spese in conto capitale;2;Investimenti fissi lordi e acquisto di terreni;1;Beni materiali;9;Beni immobili;3;Fabbricati ad uso scolastico;12/12/2018
1169;1;0;854;854;Igorsoft.net di Tomasetto Igor;ZDC22CBE4F;SALDO Fatt.n. FATTPA 14_18  del 10/12/2018 Interventi di assistenza informatica anno 2018;12/12/2018;555;0;100;1;Spese correnti;3;Acquisto di beni e servizi;2;Acquisto di servizi;19;Servizi informatici e di telecomunicazioni;1;Gestione e manutenzione applicazioni;12/12/2018
1170;1;0;1.145,58;1.145,58;Igorsoft.net di Tomasetto Igor;Z9526215C5;SALDO Fatt.n. FATTPA 15_18  del 10/12/2018 Fornitura pc e monitor per Ufficio tecnico;12/12/2018;4753;0;372;1;Spese correnti;3;Acquisto di beni e servizi;1;Acquisto di beni;2;Altri beni di consumo;1;Carta, cancelleria e stampati;12/12/2018
1173;1;0;15,26;84,01;Acquevenete Spa;Z311381BD7;SALDO Fatt.n. BEB18-0003099  del 04/12/2018 Fornitura acqua potabile utenza Via 4 Novembre per il periodo dal 28.06.2018 al 31.10.2018;13/12/2018;1350;0;58;1;Spese correnti;3;Acquisto di beni e servizi;2;Acquisto di servizi;5;Utenze e canoni;5;Acqua;13/12/2018
1173;2;0;15,51;84,01;Acquevenete Spa;Z311381BD7;SALDO Fatt.n. BEB18-0003095  del 04/12/2018 Fornitura acqua potabile utenza Via Vo' Di Sotto per il periodo dal 27.06.2018 al 31.10.2018;13/12/2018;1350;0;58;1;Spese correnti;3;Acquisto di beni e servizi;2;Acquisto di servizi;5;Utenze e canoni;5;Acqua;13/12/2018
1173;3;0;15,87;84,01;Acquevenete Spa;Z311381BD7;SALDO Fatt.n. BEB18-0003096  del 04/12/2018 Fornitura acqua potabile utenza Via Vasche per il periodo dal 29.06.2018 al 05.11.2018;13/12/2018;1350;0;58;1;Spese correnti;3;Acquisto di beni e servizi;2;Acquisto di servizi;5;Utenze e canoni;5;Acqua;13/12/2018
1173;4;0;16,13;84,01;Acquevenete Spa;Z311381BD7;SALDO Fatt.n. BEB18-0003098  del 04/12/2018 Fornitura acqua potabile utenza Via Carducci per il periodo dal 28.06.2018 al 31.10.2018;13/12/2018;1350;0;58;1;Spese correnti;3;Acquisto di beni e servizi;2;Acquisto di servizi;5;Utenze e canoni;5;Acqua;13/12/2018
1173;5;0;21,24;84,01;Acquevenete Spa;Z311381BD7;SALDO Fatt.n. BEB18-0003093  del 04/12/2018 Fornitura acqua potabile utenza fontanella pubblica Vo' Vecchio per il periodo dal 26.06.2018 al 31.10.2018;13/12/2018;1350;0;58;1;Spese correnti;3;Acquisto di beni e servizi;2;Acquisto di servizi;5;Utenze e canoni;5;Acqua;13/12/2018
1174;1;0;19,9;84,73;Acquevenete Spa;Z311381BD7;SALDO Fatt.n. BEB18-0003084  del 04/12/2018 Fornitura acqua potabile utenza cimitero Cortela' per il periodo dal 30.06.2018 al 31.10.2018;13/12/2018;51801;0;54;1;Spese correnti;3;Acquisto di beni e servizi;2;Acquisto di servizi;5;Utenze e canoni;5;Acqua;13/12/2018
1174;2;0;15,26;84,73;Acquevenete Spa;Z311381BD7;SALDO Fatt.n. BEB18-0003083  del 04/12/2018 Fornitura acqua potabile utenza cimitero Zovon per il periodo dal 28.06.2018 al 31.10.2018;13/12/2018;51801;0;54;1;Spese correnti;3;Acquisto di beni e servizi;2;Acquisto di servizi;5;Utenze e canoni;5;Acqua;13/12/2018
1174;3;0;24,1;84,73;Acquevenete Spa;Z311381BD7;SALDO Fatt.n. BEB18-0003090  del 04/12/2018 Fornitura acqua potabile utenza cimitero Vo' Vecchio per il periodo dal 27.06.2018 al 05.11.2018;13/12/2018;51801;0;54;1;Spese correnti;3;Acquisto di beni e servizi;2;Acquisto di servizi;5;Utenze e canoni;5;Acqua;13/12/2018
1174;4;0;25,47;84,73;Acquevenete Spa;Z311381BD7;SALDO Fatt.n. BEB18-0003087  del 04/12/2018 Fornitura acqua potabile utenza cimitero Boccon per il periodo dal 30.06.2018 al 31.10.2018;13/12/2018;51801;0;54;1;Spese correnti;3;Acquisto di beni e servizi;2;Acquisto di servizi;5;Utenze e canoni;5;Acqua;13/12/2018
1175;1;0;15,02;136,19;Acquevenete Spa;Z311381BD7;SALDO Fatt.n. BEB18-0003082  del 04/12/2018 Fornitura acqua potabile utenza ex Scuola Zovon per il periodo dal 01.07.2018 al 31.10.2018;13/12/2018;1330;0;52;1;Spese correnti;3;Acquisto di beni e servizi;2;Acquisto di servizi;5;Utenze e canoni;5;Acqua;13/12/2018
1175;2;0;121,17;136,19;Acquevenete Spa;Z311381BD7;SALDO Fatt.n. BEB18-0003086  del 04/12/2018 Fornitura acqua potabile utenza ex scuola Vo' Vecchio per il periodo dal 26.06.2018 al 31.10.2018;13/12/2018;1330;0;52;1;Spese correnti;3;Acquisto di beni e servizi;2;Acquisto di servizi;5;Utenze e canoni;5;Acqua;13/12/2018
1176;1;0;130,38;130,38;Acquevenete Spa;Z311381BD7;SALDO Fatt.n. BEB18-0003092  del 04/12/2018 Fornitura acqua potabile utenza impianto sportivo Via Marconi periodo dal 21.03.2018 al 25.06.2018 (conguaglio per chiusura contratto);13/12/2018;64981;0;53;1;Spese correnti;3;Acquisto di beni e servizi;2;Acquisto di servizi;5;Utenze e canoni;5;Acqua;13/12/2018
1177;1;0;168,1;168,1;Acquevenete Spa;Z311381BD7;SALDO Fatt.n. BEB18-0003085  del 04/12/2018 Fornitura acqua potabile utenza Sede Municipale per il periodo dal 28.06.2018 al 31.10.2018;13/12/2018;4751;0;48;1;Spese correnti;3;Acquisto di beni e servizi;2;Acquisto di servizi;5;Utenze e canoni;5;Acqua;13/12/2018
1178;1;0;23,35;23,35;Acquevenete Spa;Z311381BDZ;SALDO Fatt.n. BEB18-0003100  del 04/12/2018 Fornitura acqua potabile utenza n. 048002239 Polo Scolastico per il periodo dal 01.01.2018 al 31.10.2018;13/12/2018;28001;0;49;1;Spese correnti;3;Acquisto di beni e servizi;2;Acquisto di servizi;5;Utenze e canoni;5;Acqua;13/12/2018
1179;1;0;217,89;217,89;Acquevenete Spa;Z311381BD7;SALDO Fatt.n. BEB18-0003089  del 04/12/2018 Fornitura acqua potabile utenza Polo Scolastico per il periodo dal 30.06.2018 al 31.10.2018;13/12/2018;29701;0;50;1;Spese correnti;3;Acquisto di beni e servizi;2;Acquisto di servizi;5;Utenze e canoni;5;Acqua;13/12/2018
1180;1;0;918,4;918,4;Acquevenete Spa;Z311381BD7;ACCONTO Fatt.n. BEB18-0003091  del 04/12/2018 Fornitura acqua potabile utenza immobile Piazzetta Martiri conguaglio periodo dal 01.05.2017 al 31.10.2018;13/12/2018;1405;0;59;1;Spese correnti;3;Acquisto di beni e servizi;2;Acquisto di servizi;5;Utenze e canoni;5;Acqua;13/12/2018
1181;1;0;1.000,00;1.000,00;Acquevenete Spa;Z311381BDZ;ACCONTO Fatt.n. BEB18-0003091  del 04/12/2018 Fornitura acqua potabile utenza immobile Piazzetta Martiri conguaglio periodo dal 01.05.2017 al 31.10.2018;13/12/2018;1405;0;57;1;Spese correnti;3;Acquisto di beni e servizi;2;Acquisto di servizi;5;Utenze e canoni;5;Acqua;13/12/2018
1182;1;0;1.936,07;1.936,07;Acquevenete Spa;Z311381BD7;SALDO Fatt.n. BEB18-0003091  del 04/12/2018 Fornitura acqua potabile utenza immobile Piazzetta Martiri conguaglio periodo dal 01.05.2017 al 31.10.2018;13/12/2018;1405;0;388;1;Spese correnti;3;Acquisto di beni e servizi;2;Acquisto di servizi;5;Utenze e canoni;5;Acqua;13/12/2018
1197;1;0;55,78;55,78;DIPENDENTI COMUNALI DIVERSI; ;Rimborso quota spese mensa dipendenti 01.07.208 - 10.12.2018 - A.L. AC 261 del 10.12.2018;13/12/2018;9375;0;233;1;Spese correnti;3;Acquisto di beni e servizi;2;Acquisto di servizi;99;Altri servizi;999;Altri servizi diversi n.a.c.;13/12/2018
1203;1;0;149,62;149,62;RG Srl;73000385ED;"ACCONTO Fatt.n. 5E/2018  del 12/12/2018 FATTURA A SALDO PER SOSTITUZIONE CALDAIA OPERE IDRAULICHE NEI LAVORI DI RUQUALIFICAZIONE ENERGETICA DEL POLO SCOLASTICO ""A. PILONATO""  - .";13/12/2018;10390;0;387;2;Spese in conto capitale;2;Investimenti fissi lordi e acquisto di terreni;1;Beni materiali;9;Beni immobili;3;Fabbricati ad uso scolastico;13/12/2018
1204;1;0;1.210,00;1.210,00;RG Srl;73000385ED;"SALDO Fatt.n. 5E/2018  del 12/12/2018 FATTURA A SALDO PER SOSTITUZIONE CALDAIA OPERE IDRAULICHE NEI LAVORI DI RUQUALIFICAZIONE ENERGETICA DEL POLO SCOLASTICO ""A. PILONATO""  - .";13/12/2018;10390;0;387;2;Spese in conto capitale;2;Investimenti fissi lordi e acquisto di terreni;1;Beni materiali;9;Beni immobili;3;Fabbricati ad uso scolastico;13/12/2018
1205;1;0;8,3;8,3;ECONOMO COMUNALE; ;Rifusioni buoni economato n. 86 e 91 - A.L. AC N. 263 DEL 13.12.2018;13/12/2018;230;0;6;1;Spese correnti;3;Acquisto di beni e servizi;2;Acquisto di servizi;1;Organi e incarichi istituzionali dell'amministrazione;2;Organi istituzionali dell'amministrazione - Rimborsi;13/12/2018
1206;1;0;220;220;ECONOMO COMUNALE; ;Rifusione buoni economato n. 81 e 82 - A.L. AC N. 263 DEL 13.12.2018;13/12/2018;445;0;108;1;Spese correnti;3;Acquisto di beni e servizi;2;Acquisto di servizi;4;Acquisto di servizi per formazione e addestramento del personale dell'ente;999;Acquisto di servizi per altre spese per formazione e addestramento n.a.c.;13/12/2018
1207;1;0;17,74;17,74;ECONOMO COMUNALE; ;Rifusione buoni economato n. 79 e 80 - A.L. AC N. 263 DEL 13.12.2018;13/12/2018;450;0;75;1;Spese correnti;3;Acquisto di beni e servizi;2;Acquisto di servizi;99;Altri servizi;999;Altri servizi diversi n.a.c.;13/12/2018
1208;1;0;392,96;392,96;ECONOMO COMUNALE; ;Rifusione buoni economato n. 77 78 83 85 87 88 89 90 92 93;13/12/2018;4754;0;110;1;Spese correnti;3;Acquisto di beni e servizi;1;Acquisto di beni;2;Altri beni di consumo;999;Altri beni e materiali di consumo n.a.c.;13/12/2018
1209;1;0;30;30;ECONOMO COMUNALE; ;Rifusione buono economato n. 84p - A.L. AC N. 263 DEL 13.12.2018;13/12/2018;2667;0;4;1;Spese correnti;3;Acquisto di beni e servizi;1;Acquisto di beni;2;Altri beni di consumo;999;Altri beni e materiali di consumo n.a.c.;13/12/2018
1210;1;0;32;32;ECONOMO COMUNALE; ;Rifusione buonmo economato n. 84p - A.L. AC N. 263 DEL 13.12.2018;13/12/2018;2667;0;112;1;Spese correnti;3;Acquisto di beni e servizi;1;Acquisto di beni;2;Altri beni di consumo;999;Altri beni e materiali di consumo n.a.c.;13/12/2018
1211;1;0;97,5;97,5;ECONOMO COMUNALE; ;Rifusione buono economato n. 76 - A.L. AC N. 263 DEL 13.12.2018;13/12/2018;28002;0;113;1;Spese correnti;3;Acquisto di beni e servizi;1;Acquisto di beni;2;Altri beni di consumo;999;Altri beni e materiali di consumo n.a.c.;13/12/2018
1212;1;0;137,8;4.559,17;Illumia S.p.A.;Z0E14167CF;SALDO Fatt.n. 7324-PE  del 14/11/2018 Fornitura energia elettrica utenza torretta Piazzetta Spolverato mese di ottobre 2018  -  provv. 177;19/12/2018;7420;0;335;1;Spese correnti;3;Acquisto di beni e servizi;2;Acquisto di servizi;5;Utenze e canoni;4;Energia elettrica;19/12/2018
1212;2;0;4.421,37;4.559,17;Illumia S.p.A.;Z0E14167CF;SALDO Fatt.n. 7318-PE  del 14/11/2018 Fornitura energia elettrica utenze pubblica illuminazione mese di ottobre 2018  -  provv. 178;19/12/2018;7420;0;335;1;Spese correnti;3;Acquisto di beni e servizi;2;Acquisto di servizi;5;Utenze e canoni;4;Energia elettrica;19/12/2018
1213;1;0;412,53;412,53;Illumia S.p.A.;Z0E14167CF;SALDO Fatt.n. 7321-PE  del 14/11/2018 Fornitura energia elettrica Immobile Piazzetta Martiri mese di ottobre 2018  -  provv. 179;19/12/2018;1405;0;334;1;Spese correnti;3;Acquisto di beni e servizi;2;Acquisto di servizi;5;Utenze e canoni;4;Energia elettrica;19/12/2018
1214;1;0;334,69;334,69;Illumia S.p.A.;Z0E14167CF;ACCONTO Fatt.n. 7320-PE  del 14/11/2018 Fornitura energia elettrica utenza Polo Scolastico mese di ottobre 2018  -  provv. 181;19/12/2018;28001;0;328;1;Spese correnti;3;Acquisto di beni e servizi;2;Acquisto di servizi;5;Utenze e canoni;4;Energia elettrica;19/12/2018
1215;1;0;334,69;334,69;Illumia S.p.A.;Z0E14167CF;ACCONTO Fatt.n. 7320-PE  del 14/11/2018 Fornitura energia elettrica utenza Polo Scolastico mese di ottobre 2018  -  provv. 181;19/12/2018;29701;0;329;1;Spese correnti;3;Acquisto di beni e servizi;2;Acquisto di servizi;5;Utenze e canoni;4;Energia elettrica;19/12/2018
1216;1;0;334,7;334,7;Illumia S.p.A.;Z0E14167CF;SALDO Fatt.n. 7320-PE  del 14/11/2018 Fornitura energia elettrica utenza Polo Scolastico mese di ottobre 2018  -  provv. 181;19/12/2018;31801;0;330;1;Spese correnti;3;Acquisto di beni e servizi;2;Acquisto di servizi;5;Utenze e canoni;4;Energia elettrica;19/12/2018
1217;1;0;368,89;368,89;Illumia S.p.A.;Z0E14167CF;SALDO Fatt.n. 7323-PE  del 14/11/2018 Fornitura energia elettrica utenza Sede Municipale mese di ottobre 2018  -  provv. 182;19/12/2018;4751;0;327;1;Spese correnti;3;Acquisto di beni e servizi;2;Acquisto di servizi;5;Utenze e canoni;4;Energia elettrica;19/12/2018
1218;1;0;238,29;238,29;Illumia S.p.A.;Z0E14167CF;SALDO Fatt.n. 7322-PE  del 14/11/2018 Fornitura energia elettrica utenza Villa Venier mese di ottobre 2018  -  provv. 180;19/12/2018;1312;0;333;1;Spese correnti;3;Acquisto di beni e servizi;2;Acquisto di servizi;5;Utenze e canoni;4;Energia elettrica;19/12/2018
1219;1;0;1,15;1,15;BANCA MONTE DEI PASCHI DI SIENA S.p.A.;Z772239A29;Canone per POS mese di novembre 2018  -  provv. 176;19/12/2018;600;0;143;1;Spese correnti;3;Acquisto di beni e servizi;2;Acquisto di servizi;17;Servizi finanziari;2;Oneri per servizio di tesoreria;19/12/2018
1220;1;0;5;5;BANCA MONTE DEI PASCHI DI SIENA S.p.A.;Z772239A29;Commissioni per pagamento bollettini postali  (mandato n. 705 del 27.07.2018)  -  provv. 132;19/12/2018;600;0;143;1;Spese correnti;3;Acquisto di beni e servizi;2;Acquisto di servizi;17;Servizi finanziari;2;Oneri per servizio di tesoreria;19/12/2018
1223;1;0;3.391,63;3.391,63;CASSA DEPOSITI E PRESTITI SPA; ;Quota interessi dei mutui in ammortamento rata del 31.12.2018  -  provv. 183;31/12/2018;3285;0;244;1;Spese correnti;7;Interessi passivi;5;Interessi su Mutui e altri finanziamenti a medio lungo termine;4;Interessi passivi su finanziamenti a medio lungo termine a Imprese;3;Interessi passivi a Cassa Depositi e Prestiti SPA su mutui e altri finanziamenti a medio lungo termine;31/12/2018
1224;1;0;1.052,12;1.052,12;CASSA DEPOSITI E PRESTITI SPA; ;Quota interessi dei mutui in ammortamento rata del 31.12.2018  -  provv. 183;31/12/2018;5685;0;245;1;Spese correnti;7;Interessi passivi;5;Interessi su Mutui e altri finanziamenti a medio lungo termine;4;Interessi passivi su finanziamenti a medio lungo termine a Imprese;999;Interessi passivi a altre imprese su finanziamenti a medio lungo termine;31/12/2018
1225;1;0;25.784,13;25.784,13;CASSA DEPOSITI E PRESTITI SPA; ;Quota interessi dei mutui in ammortamento rata del 31.12.2018  -  provv. 183;31/12/2018;7450;0;246;1;Spese correnti;7;Interessi passivi;5;Interessi su Mutui e altri finanziamenti a medio lungo termine;4;Interessi passivi su finanziamenti a medio lungo termine a Imprese;3;Interessi passivi a Cassa Depositi e Prestiti SPA su mutui e altri finanziamenti a medio lungo termine;31/12/2018
